Workbook

Sheet Step 1 - Fungicide Planner
A17: Design Your Own Program Fungicide Planner
A18: BASF Brand Name | B18: Case Size | C18: Article No. | D18: Use Area | E18: Acres | F18: Application Rate | G18: Number of Applications | H18: Cases of Product Needed | I18: Cost per Acre (before rebate) | J18: Cost per Acre (after rebate*)
K19: Article | L19: Rate | M19: Coverage | N19: Cases
A20: Emerald® | B20: =VLOOKUP(C20,'Article Reference'!$A$3:$C$15,3,FALSE) -> 10 x 0.49 lb | C20: 59021463 | E20: 0 | F20: 8.0 oz | G20: 0 | H20: =IF(M20=0,0,(G20*E20)/M20) -> 0 | I20: =IF(G20*E20=0,0,(ROUND(H20,2)*VLOOKUP(K20,'Step 2 - Order Planner'!$C$26:$D$75,2,FALSE))/(G20*E20)) -> 0 | J20: =IF(G20*E20=0,0,((VLOOKUP(K20,'Step 2 - Order Planner'!$C$26:$D$75,2,FALSE)*(1-'Step 2 - Order Planner'!$B$20))*ROUND(H20,2))/(G20*E20)) -> 0 | K20: 59021463 | L20: 7 | M20: =IF(L20=0,0,VLOOKUP(K20,'Coverage Reference'!$B$4:$H$19,L20,FALSE)) -> 10.00 | N20: =H20 -> 0
A21: Encartis® | B21: =VLOOKUP(C21,'Article Reference'!$A$3:$C$15,3,FALSE) -> 2 x 2.5 gal | C21: 59014003 | E21: 0 | F21: Select Rate | G21: 0 | H21: =IF(M21=0,0,(G21*E21)/M21) -> 0 | I21: =IF(G21*E21=0,0,(ROUND(H21,2)*VLOOKUP(K21,'Step 2 - Order Planner'!$C$26:$D$75,2,FALSE))/(G21*E21)) -> 0 | J21: =IF(G21*E21=0,0,((VLOOKUP(K21,'Step 2 - Order Planner'!$C$26:$D$75,2,FALSE)*(1-'Step 2 - Order Planner'!$B$20))*ROUND(H21,2))/(G21*E21)) -> 0 | K21: 59014003 | L21: =IF(F21="130.5 fl oz",5,IF(F21="152.5 fl oz",6,IF(F21="174.0 fl oz",7,))) -> 0 | M21: =IF(L21=0,0,VLOOKUP(K21,'Coverage Reference'!$B$4:$H$19,L21,FALSE)) -> 0 | N21: =H21 -> 0
A22: Honor® Intrinsic® | B22: =VLOOKUP(C22,'Article Reference'!$A$3:$C$15,3,FALSE) -> 6 x 3 lb | C22: 59012350 | E22: 0 | F22: 48.0 oz | G22: 0 | H22: 0 | I22: =IF(G22*E22=0,0,(ROUND(H22,2)*VLOOKUP(K22,'Step 2 - Order Planner'!$C$26:$D$75,2,FALSE))/(G22*E22)) -> 0 | J22: =IF(G22*E22=0,0,((VLOOKUP(K22,'Step 2 - Order Planner'!$C$26:$D$75,2,FALSE)*(1-'Step 2 - Order Planner'!$B$20))*ROUND(H22,2))/(G22*E22)) -> 0 | K22: 59012350 | L22: 7 | M22: =IF(L22=0,0,VLOOKUP(K22,'Coverage Reference'!$B$4:$H$19,L22,FALSE)) -> 6.00 | N22: =H22 -> 0
B23: =VLOOKUP(C23,'Article Reference'!$A$3:$C$15,3,FALSE) -> 1 x 36 lb | C23: 59012885 | E23: 0 | F23: 48.0 oz | G23: 0 | H23: 0 | I23: =IF(G23*E23=0,0,(ROUND(H23,2)*VLOOKUP(K23,'Step 2 - Order Planner'!$C$26:$D$75,2,FALSE))/(G23*E23)) -> 0 | J23: =IF(G23*E23=0,0,((VLOOKUP(K23,'Step 2 - Order Planner'!$C$26:$D$75,2,FALSE)*(1-'Step 2 - Order Planner'!$B$20))*ROUND(H23,2))/(G23*E23)) -> 0 | K23: 59012885 | L23: 7 | M23: =IF(L23=0,0,VLOOKUP(K23,'Coverage Reference'!$B$4:$H$19,L23,FALSE)) -> 12.00 | N23: 0
A24: Insignia® SC Intrinsic® | B24: =VLOOKUP(C24,'Article Reference'!$A$3:$C$15,3,FALSE) -> 4 x 30.5 fl oz | C24: 59014134 | E24: 0 | F24: 30.5 oz | G24: 0 | H24: 0 | I24: =IF(G24*E24=0,0,(ROUND(H24,2)*VLOOKUP(K24,'Step 2 - Order Planner'!$C$26:$D$75,2,FALSE))/(G24*E24)) -> 0 | J24: =IF(G24*E24=0,0,((VLOOKUP(K24,'Step 2 - Order Planner'!$C$26:$D$75,2,FALSE)*(1-'Step 2 - Order Planner'!$B$20))*ROUND(H24,2))/(G24*E24)) -> 0 | K24: 59014134 | L24: 7 | M24: =IF(L24=0,0,VLOOKUP(K24,'Coverage Reference'!$B$4:$H$19,L24,FALSE)) -> 4.00 | N24: 0 | O24: Greens
B25: =VLOOKUP(C25,'Article Reference'!$A$3:$C$15,3,FALSE) -> 2 x 2.5 gal | C25: 59014135 | E25: 0 | F25: 30.5 oz | G25: 0 | H25: 0 | I25: =IF(G25*E25=0,0,(ROUND(H25,2)*VLOOKUP(K25,'Step 2 - Order Planner'!$C$26:$D$75,2,FALSE))/(G25*E25)) -> 0 | J25: =IF(G25*E25=0,0,((VLOOKUP(K25,'Step 2 - Order Planner'!$C$26:$D$75,2,FALSE)*(1-'Step 2 - Order Planner'!$B$20))*ROUND(H25,2))/(G25*E25)) -> 0 | K25: 59014135 | L25: 7 | M25: =IF(L25=0,0,VLOOKUP(K25,'Coverage Reference'!$B$4:$H$19,L25,FALSE)) -> 21.00 | N25: 0 | O25: Fairways
A26: Lexicon® Intrinsic® | B26: =VLOOKUP(C26,'Article Reference'!$A$3:$C$15,3,FALSE) -> 4 x 21 oz | C26: 59027998 | E26: 0 | F26: 21.0 oz | G26: 0 | H26: 0 | I26: =IF(G26*E26=0,0,(ROUND(H26,2)*VLOOKUP(K26,'Step 2 - Order Planner'!$C$26:$D$75,2,FALSE))/(G26*E26)) -> 0 | J26: =IF(G26*E26=0,0,((VLOOKUP(K26,'Step 2 - Order Planner'!$C$26:$D$75,2,FALSE)*(1-'Step 2 - Order Planner'!$B$20))*ROUND(H26,2))/(G26*E26)) -> 0 | K26: 59027998 | L26: 7 | M26: =IF(L26=0,0,VLOOKUP(K26,'Coverage Reference'!$B$4:$H$19,L26,FALSE)) -> 4.00 | N26: 0
A27: Maxtima® | B27: =VLOOKUP(C27,'Article Reference'!$A$3:$C$15,3,FALSE) -> 4 x 26 oz | C27: 59018087 | E27: 0 | F27: Select Rate | G27: 0 | H27: 0 | I27: =IF(G27*E27=0,0,(ROUND(H27,2)*VLOOKUP(K27,'Step 2 - Order Planner'!$C$26:$D$75,2,FALSE))/(G27*E27)) -> 0 | J27: =IF(G27*E27=0,0,((VLOOKUP(K27,'Step 2 - Order Planner'!$C$26:$D$75,2,FALSE)*(1-'Step 2 - Order Planner'!$B$20))*ROUND(H27,2))/(G27*E27)) -> 0 | K27: 59018087 | L27: =IF(F27="8.7 oz",4,IF(F27="17.4 oz",5,IF(F27="26.1 oz",6,IF(F27="34.8 oz",7,0)))) -> 0 | M27: =IF(L27=0,0,VLOOKUP(K27,'Coverage Reference'!$B$4:$H$19,L27,FALSE)) -> 0 | N27: 0
B28: =VLOOKUP(C28,'Article Reference'!$A$3:$C$15,3,FALSE) -> 2 x 2.5 gal | C28: 59018071 | E28: 0 | F28: Select Rate | G28: 0 | H28: 0 | I28: =IF(G28*E28=0,0,(ROUND(H28,2)*VLOOKUP(K28,'Step 2 - Order Planner'!$C$26:$D$75,2,FALSE))/(G28*E28)) -> 0 | J28: =IF(G28*E28=0,0,((VLOOKUP(K28,'Step 2 - Order Planner'!$C$26:$D$75,2,FALSE)*(1-'Step 2 - Order Planner'!$B$20))*ROUND(H28,2))/(G28*E28)) -> 0 | K28: 59018071 | L28: =IF(F28="8.7 oz",4,IF(F28="17.4 oz",5,IF(F28="26.1 oz",6,IF(F28="34.8 oz",7,0)))) -> 0 | M28: =IF(L28=0,0,VLOOKUP(K28,'Coverage Reference'!$B$4:$H$19,L28,FALSE)) -> 0 | N28: 0
A29: Navicon® Intrinsic® | B29: =VLOOKUP(C29,'Article Reference'!$A$3:$C$15,3,FALSE) -> 4 x 37 fl oz | C29: 59018094 | E29: 0 | F29: 37.5 oz | G29: 0 | H29: 0 | I29: =IF(G29*E29=0,0,(ROUND(H29,2)*VLOOKUP(K29,'Step 2 - Order Planner'!$C$26:$D$75,2,FALSE))/(G29*E29)) -> 0 | J29: =IF(G29*E29=0,0,((VLOOKUP(K29,'Step 2 - Order Planner'!$C$26:$D$75,2,FALSE)*(1-'Step 2 - Order Planner'!$B$20))*ROUND(H29,2))/(G29*E29)) -> 0 | K29: 59018094 | L29: 7 | M29: =IF(L29=0,0,VLOOKUP(K29,'Coverage Reference'!$B$4:$H$19,L29,FALSE)) -> 4.00 | N29: 0
B30: =VLOOKUP(C30,'Article Reference'!$A$3:$C$15,3,FALSE) -> 2 x 2.5 gal | C30: 59018095 | E30: 0 | F30: 37.5 oz | G30: 0 | H30: 0 | I30: =IF(G30*E30=0,0,(ROUND(H30,2)*VLOOKUP(K30,'Step 2 - Order Planner'!$C$26:$D$75,2,FALSE))/(G30*E30)) -> 0 | J30: =IF(G30*E30=0,0,((VLOOKUP(K30,'Step 2 - Order Planner'!$C$26:$D$75,2,FALSE)*(1-'Step 2 - Order Planner'!$B$20))*ROUND(H30,2))/(G30*E30)) -> 0 | K30: 59018095 | L30: 7 | M30: =IF(L30=0,0,VLOOKUP(K30,'Coverage Reference'!$B$4:$H$19,L30,FALSE)) -> 17.00 | N30: 0
A31: Xzemplar® | B31: =VLOOKUP(C31,'Article Reference'!$A$3:$C$15,3,FALSE) -> 4 x 11.4 oz | C31: 59014120 | E31: 0 | F31: Select Rate | G31: 0 | H31: 0 | I31: =IF(G31*E31=0,0,(ROUND(H31,2)*VLOOKUP(K31,'Step 2 - Order Planner'!$C$26:$D$75,2,FALSE))/(G31*E31)) -> 0 | J31: =IF(G31*E31=0,0,((VLOOKUP(K31,'Step 2 - Order Planner'!$C$26:$D$75,2,FALSE)*(1-'Step 2 - Order Planner'!$B$20))*ROUND(H31,2))/(G31*E31)) -> 0 | K31: 59014120 | L31: =IF(F31="9.135 oz",6,IF(F31="11.31 oz",7,0)) -> 0 | M31: =IF(L31=0,0,VLOOKUP(K31,'Coverage Reference'!$B$4:$H$19,L31,FALSE)) -> 0 | N31: 0
B32: =VLOOKUP(C32,'Article Reference'!$A$3:$C$15,3,FALSE) -> 2 x 114 oz | C32: 59013833 | E32: 0 | F32: Select Rate | G32: 0 | H32: 0 | I32: =IF(G32*E32=0,0,(ROUND(H32,2)*VLOOKUP(K32,'Step 2 - Order Planner'!$C$26:$D$75,2,FALSE))/(G32*E32)) -> 0 | J32: =IF(G32*E32=0,0,((VLOOKUP(K32,'Step 2 - Order Planner'!$C$26:$D$75,2,FALSE)*(1-'Step 2 - Order Planner'!$B$20))*ROUND(H32,2))/(G32*E32)) -> 0 | K32: 59013833 | L32: =IF(F32="9.135 oz",6,IF(F32="11.31 oz",7,0)) -> 0 | M32: =IF(L32=0,0,VLOOKUP(K32,'Coverage Reference'!$B$4:$H$19,L32,FALSE)) -> 0 | N32: 0
A34: * Cost per Acre after rebate is estimated based on orders in "Step 2 - Order Planner" tab
A35: BASF has developed this calculator using formulas that approximate the rebate amount under the 2024 Early Order Program. The calculator is being shared with you for information purposes only and for your private use in preparing your own calculations. While every effort has been made to ensure the accuracy and reliability of the information and formulas, no guarantee is given nor responsibility taken by BASF for the accuracy of the calculator or the applicability to your particular circumstances. BASF PROVIDES THIS CALCULATOR AND ANY RESULT THEREFROM AS IS WITH ALL FAULTS AND WITH NO WARRANTY WHATSOEVER, EITHER EXPRESS OR IMPLIED, INCLUDING ANY WARRANTIES OF MERCHANTABILITY AND FITNESS FOR PARTICULAR PURPOSE. YOU ASSUME ANY AND ALL RISKS IN USING THE CALCULATOR AND RELYING ON THE INFORMATION CONTAINED HEREIN. IN NO CIRCUMSTANCES SHALL BASF BE LIABLE FOR ANY DAMAGES WHATSOEVER, INCLUDING BUT NOT LIMITED TO LOSS OF PROFIT, LOSS OF BUSINESS, LOSS OF SAVINGS, OR CONSEQUENTIAL DAMAGES, EVEN IF BASF HAS BEEN NOTIFIED AS SUCH.

Sheet Step 2 - Order Planner
P15: Upgrade Your DYOP Rebate
A16: EOP Rebate Calculator | P16: =IF('Range Reference'!S17=0,"Buy 3 fungicide brands to qualify",IF('Range Reference'!S17=1,"Buy 2 more fungicide brands to qualify",IF('Range Reference'!S17=2,"Buy 1 more fungicide brand to qualify","Qualified"))) -> Buy 3 fungicide brands to qualify
A17: DYOP Rebate Program Locked | B17: =IF(AND(G39>=3000,'Range Reference'!Q17>=1),"October Rebate Locked",IF(AND(J39>=3000,'Range Reference'!S17>=3),"Nov-Dec Rebate Locked","Rebate Level Not Achieved")) -> Rebate Level Not Achieved | D17: DYOP Total Purchases | H17: =G39+I39 -> 0
A18: 3 or More Fungicide Brands | B18: =IF(AND(H17>=3000,'Range Reference'!S17>=3),"Design Your Own Program Rebate","Need to buy "&3-'Range Reference'!S17&" More Brand(s)") -> Need to buy 3 More Brand(s) | D18: DYOP Rebate | H18: =IF(AND(B20=0,B21>0),H17*B21,(B20*H17)) -> 0 | P18: Spend for Next DYOP Level | Q18: Next Level
D19: Across-the-Course-Solutions Purchases | H19: =G76 -> 0
A20: DYOP Rebate | B20: =IF(AND('Range Reference'!S17<3,G39>=3000),0.08,'Range Reference'!G16) -> 0% | D20: Across-the-Course-Solutions Rebate | H20: =(H19*B21) -> 0 | P20: =IF(P16<>"Qualified","",HLOOKUP(H17,'Range Reference'!$H$10:$H$16,7,FALSE)) ->  | Q20: =IF(ISNA(IF(P20=0,"Max",VLOOKUP(P20,'Range Reference'!H11:I15,2,FALSE)))=TRUE,"",IF(P20=0,"Max",VLOOKUP(P20,'Range Reference'!H11:I15,2,FALSE))) -> 
A21: Across-The-Course Rebate | B21: =IF(AND('Range Reference'!S17>=3,H17>=20000),0.12,'Range Reference'!G6) -> 0% | D21: TOTAL EOP PURCHASE | H21: =H17+H19 -> 0
A22: Insignia® Intrinsic® Kicker - 5% | B22: =IF((F31+H31)>=1,(G31+I31)*0.05,0) -> 0 | D22: Total Effective Rebate on All Purchases | H22: =IF(H21=0,0,H23/H21) -> 0.00% | P22: Spend for Next ATS Level | Q22: Next Level
A23: Honor® Intrinsic® Kicker - 5% | B23: =IF((F29+H29)>=2,(G29+I29)*0.05,0) -> 0 | D23: TOTAL EOP Rebate | H23: =(H18+H20)+(B22+B23) -> 0
A25: Qualifying Fungicide EOP Products | B25: Package | C25: Article No. | D25: Redemption Value | E25: Cases Needed (rounded up to partial cases) | F25: Oct Order (Cases) | G25: Oct Sales | H25: Nov-Dec Order (Cases) | I25: Nov-Dec Sales | J25: Acres Low | K25: Acres Mid | L25: Acres High | M25: roundup | N25: ceiling | P25: =IF(H17>=25000,0,HLOOKUP(H19,'Range Reference'!$H$19:$H$23,5,FALSE)) -> $3,000.00 | Q25: =IF(P25=0,"Max",VLOOKUP(P25,'Range Reference'!H20:I22,2,FALSE)) -> 4%
A26: =VLOOKUP($C26,'Article Reference'!$A$3:$C$37,2,FALSE) -> Emerald® fungicide | B26: =VLOOKUP($C26,'Article Reference'!$A$3:$C$37,3,FALSE) -> 10 x 0.49 lb | C26: 59021463 | D26: =VLOOKUP($C26,'Article Reference'!$A$3:$D$15,4,FALSE) -> $1,187.40 | E26: =CEILING(ROUNDUP(IF(ISNA(VLOOKUP(C26,'Step 1 - Fungicide Planner'!$K$20:$N$32,4,FALSE))=TRUE,"",VLOOKUP(C26,'Step 1 - Fungicide Planner'!$K$20:$N$32,4,FALSE)),M26),N26) -> 0 | F26: 0 | G26: =D26*F26 -> 0 | H26: 0 | I26: =H26*D26 -> 0 | J26: =IF(ISNA(VLOOKUP($C26,'Coverage Reference'!$B$4:$H$19,4,FALSE))=TRUE,0,VLOOKUP($C26,'Coverage Reference'!$B$4:$H$19,4,FALSE)*(F26+H26)) -> 0 | K26: =IF(ISNA(VLOOKUP($C26,'Coverage Reference'!$B$4:$H$19,5,FALSE))=TRUE,0,VLOOKUP($C26,'Coverage Reference'!$B$4:$H$19,5,FALSE)*(F26+H26)) -> 0 | L26: =IF(ISNA(VLOOKUP($C26,'Coverage Reference'!$B$4:$H$19,6,FALSE))=TRUE,0,VLOOKUP($C26,'Coverage Reference'!$B$4:$H$19,6,FALSE)*(F26+H26)) -> 0 | M26: 1.000000 | N26: =1/10 -> 0.100000 | P26: Insignia® Intrinsic® Kicker | Q26: =IF(B22>0,"Achieved","Buy 5 gallons") -> Buy 5 gallons
A27: =VLOOKUP($C27,'Article Reference'!$A$3:$C$37,2,FALSE) -> Encartis® fungicide | B27: =VLOOKUP($C27,'Article Reference'!$A$3:$C$37,3,FALSE) -> 2 x 2.5 gal | C27: 59014003 | D27: =VLOOKUP($C27,'Article Reference'!$A$3:$D$15,4,FALSE) -> $645.66 | E27: =CEILING(ROUNDUP(IF(ISNA(VLOOKUP(C27,'Step 1 - Fungicide Planner'!$K$20:$N$32,4,FALSE))=TRUE,"",VLOOKUP(C27,'Step 1 - Fungicide Planner'!$K$20:$N$32,4,FALSE)),M27),N27) -> 0 | F27: 0 | G27: =D27*F27 -> 0 | H27: 0 | I27: =H27*D27 -> 0 | J27: =IF(ISNA(VLOOKUP($C27,'Coverage Reference'!$B$4:$H$19,4,FALSE))=TRUE,0,VLOOKUP($C27,'Coverage Reference'!$B$4:$H$19,4,FALSE)*(F27+H27)) -> 0 | K27: =IF(ISNA(VLOOKUP($C27,'Coverage Reference'!$B$4:$H$19,5,FALSE))=TRUE,0,VLOOKUP($C27,'Coverage Reference'!$B$4:$H$19,5,FALSE)*(F27+H27)) -> 0 | L27: =IF(ISNA(VLOOKUP($C27,'Coverage Reference'!$B$4:$H$19,6,FALSE))=TRUE,0,VLOOKUP($C27,'Coverage Reference'!$B$4:$H$19,6,FALSE)*(F27+H27)) -> 0 | M27: 1.000000 | N27: 0.500000 | P27: Honor® Intrinsic® Kicker | Q27: =IF(B23>0,"Achieved","Buy 72 pounds") -> Buy 72 pounds
A28: =VLOOKUP($C28,'Article Reference'!$A$3:$C$37,2,FALSE) -> Honor® Intrinsic® brand fungicide | B28: =VLOOKUP($C28,'Article Reference'!$A$3:$C$37,3,FALSE) -> 6 x 3 lb | C28: 59012350 | D28: =VLOOKUP($C28,'Article Reference'!$A$3:$D$15,4,FALSE) -> $3,303.54 | E28: =CEILING(ROUNDUP(IF(ISNA(VLOOKUP(C28,'Step 1 - Fungicide Planner'!$K$20:$N$32,4,FALSE))=TRUE,"",VLOOKUP(C28,'Step 1 - Fungicide Planner'!$K$20:$N$32,4,FALSE)),M28),N28) -> 0 | F28: 0 | G28: 0 | H28: 0 | I28: 0 | J28: =IF(ISNA(VLOOKUP($C28,'Coverage Reference'!$B$4:$H$19,4,FALSE))=TRUE,0,VLOOKUP($C28,'Coverage Reference'!$B$4:$H$19,4,FALSE)*(F28+H28)) -> 0 | K28: =IF(ISNA(VLOOKUP($C28,'Coverage Reference'!$B$4:$H$19,5,FALSE))=TRUE,0,VLOOKUP($C28,'Coverage Reference'!$B$4:$H$19,5,FALSE)*(F28+H28)) -> 0 | L28: =IF(ISNA(VLOOKUP($C28,'Coverage Reference'!$B$4:$H$19,6,FALSE))=TRUE,0,VLOOKUP($C28,'Coverage Reference'!$B$4:$H$19,6,FALSE)*(F28+H28)) -> 0 | M28: 1.000000 | N28: 0.166667
A29: =VLOOKUP($C29,'Article Reference'!$A$3:$C$37,2,FALSE) -> Honor® Intrinsic® brand fungicide | B29: =VLOOKUP($C29,'Article Reference'!$A$3:$C$37,3,FALSE) -> 1 x 36 lb | C29: 59012885 | D29: =VLOOKUP($C29,'Article Reference'!$A$3:$D$15,4,FALSE) -> $4,867.20 | E29: =CEILING(ROUNDUP(IF(ISNA(VLOOKUP(C29,'Step 1 - Fungicide Planner'!$K$20:$N$32,4,FALSE))=TRUE,"",VLOOKUP(C29,'Step 1 - Fungicide Planner'!$K$20:$N$32,4,FALSE)),M29),N29) -> 0 | F29: 0 | G29: 0 | H29: 0 | I29: 0 | J29: =IF(ISNA(VLOOKUP($C29,'Coverage Reference'!$B$4:$H$19,4,FALSE))=TRUE,0,VLOOKUP($C29,'Coverage Reference'!$B$4:$H$19,4,FALSE)*(F29+H29)) -> 0 | K29: =IF(ISNA(VLOOKUP($C29,'Coverage Reference'!$B$4:$H$19,5,FALSE))=TRUE,0,VLOOKUP($C29,'Coverage Reference'!$B$4:$H$19,5,FALSE)*(F29+H29)) -> 0 | L29: =IF(ISNA(VLOOKUP($C29,'Coverage Reference'!$B$4:$H$19,6,FALSE))=TRUE,0,VLOOKUP($C29,'Coverage Reference'!$B$4:$H$19,6,FALSE)*(F29+H29)) -> 0 | M29: 0 | N29: 1.000000
A30: =VLOOKUP($C30,'Article Reference'!$A$3:$C$37,2,FALSE) -> Insignia® SC Intrinsic® brand fungicide | B30: =VLOOKUP($C30,'Article Reference'!$A$3:$C$37,3,FALSE) -> 4 x 30.5 fl oz | C30: 59014134 | D30: =VLOOKUP($C30,'Article Reference'!$A$3:$D$15,4,FALSE) -> $2,169.16 | E30: =CEILING(ROUNDUP(IF(ISNA(VLOOKUP(C30,'Step 1 - Fungicide Planner'!$K$20:$N$32,4,FALSE))=TRUE,"",VLOOKUP(C30,'Step 1 - Fungicide Planner'!$K$20:$N$32,4,FALSE)),M30),N30) -> 0 | F30: 0 | G30: 0 | H30: 0 | I30: 0 | J30: =IF(ISNA(VLOOKUP($C30,'Coverage Reference'!$B$4:$H$19,4,FALSE))=TRUE,0,VLOOKUP($C30,'Coverage Reference'!$B$4:$H$19,4,FALSE)*(F30+H30)) -> 0 | K30: =IF(ISNA(VLOOKUP($C30,'Coverage Reference'!$B$4:$H$19,5,FALSE))=TRUE,0,VLOOKUP($C30,'Coverage Reference'!$B$4:$H$19,5,FALSE)*(F30+H30)) -> 0 | L30: =IF(ISNA(VLOOKUP($C30,'Coverage Reference'!$B$4:$H$19,6,FALSE))=TRUE,0,VLOOKUP($C30,'Coverage Reference'!$B$4:$H$19,6,FALSE)*(F30+H30)) -> 0 | M30: 2.000000 | N30: 0.250000
A31: =VLOOKUP($C31,'Article Reference'!$A$3:$C$37,2,FALSE) -> Insignia® SC Intrinsic® brand fungicide | B31: =VLOOKUP($C31,'Article Reference'!$A$3:$C$37,3,FALSE) -> 2 x 2.5 gal | C31: 59014135 | D31: =VLOOKUP($C31,'Article Reference'!$A$3:$D$15,4,FALSE) -> $7,225.10 | E31: =CEILING(ROUNDUP(IF(ISNA(VLOOKUP(C31,'Step 1 - Fungicide Planner'!$K$20:$N$32,4,FALSE))=TRUE,"",VLOOKUP(C31,'Step 1 - Fungicide Planner'!$K$20:$N$32,4,FALSE)),M31),N31) -> 0 | F31: 0 | G31: 0 | H31: 0 | I31: 0 | J31: =IF(ISNA(VLOOKUP($C31,'Coverage Reference'!$B$4:$H$19,4,FALSE))=TRUE,0,VLOOKUP($C31,'Coverage Reference'!$B$4:$H$19,4,FALSE)*(F31+H31)) -> 0 | K31: =IF(ISNA(VLOOKUP($C31,'Coverage Reference'!$B$4:$H$19,5,FALSE))=TRUE,0,VLOOKUP($C31,'Coverage Reference'!$B$4:$H$19,5,FALSE)*(F31+H31)) -> 0 | L31: =IF(ISNA(VLOOKUP($C31,'Coverage Reference'!$B$4:$H$19,6,FALSE))=TRUE,0,VLOOKUP($C31,'Coverage Reference'!$B$4:$H$19,6,FALSE)*(F31+H31)) -> 0 | M31: 1.000000 | N31: 0.500000
A32: =VLOOKUP($C32,'Article Reference'!$A$3:$C$37,2,FALSE) -> Lexicon® Intrinsic® brand fungicide | B32: =VLOOKUP($C32,'Article Reference'!$A$3:$C$37,3,FALSE) -> 4 x 21 oz | C32: 59027998 | D32: =VLOOKUP($C32,'Article Reference'!$A$3:$D$15,4,FALSE) -> $2,418.36 | E32: =CEILING(ROUNDUP(IF(ISNA(VLOOKUP(C32,'Step 1 - Fungicide Planner'!$K$20:$N$32,4,FALSE))=TRUE,"",VLOOKUP(C32,'Step 1 - Fungicide Planner'!$K$20:$N$32,4,FALSE)),M32),N32) -> 0 | F32: 0 | G32: 0 | H32: 0 | I32: 0 | J32: =IF(ISNA(VLOOKUP($C32,'Coverage Reference'!$B$4:$H$19,4,FALSE))=TRUE,0,VLOOKUP($C32,'Coverage Reference'!$B$4:$H$19,4,FALSE)*(F32+H32)) -> 0 | K32: =IF(ISNA(VLOOKUP($C32,'Coverage Reference'!$B$4:$H$19,5,FALSE))=TRUE,0,VLOOKUP($C32,'Coverage Reference'!$B$4:$H$19,5,FALSE)*(F32+H32)) -> 0 | L32: =IF(ISNA(VLOOKUP($C32,'Coverage Reference'!$B$4:$H$19,6,FALSE))=TRUE,0,VLOOKUP($C32,'Coverage Reference'!$B$4:$H$19,6,FALSE)*(F32+H32)) -> 0 | M32: 2.000000 | N32: 0.250000
A33: =VLOOKUP($C33,'Article Reference'!$A$3:$C$37,2,FALSE) -> Maxtima® fungicide | B33: =VLOOKUP($C33,'Article Reference'!$A$3:$C$37,3,FALSE) -> 4 x 26 oz | C33: 59018087 | D33: =VLOOKUP($C33,'Article Reference'!$A$3:$D$15,4,FALSE) -> $907.92 | E33: =CEILING(ROUNDUP(IF(ISNA(VLOOKUP(C33,'Step 1 - Fungicide Planner'!$K$20:$N$32,4,FALSE))=TRUE,"",VLOOKUP(C33,'Step 1 - Fungicide Planner'!$K$20:$N$32,4,FALSE)),M33),N33) -> 0 | F33: 0 | G33: 0 | H33: 0 | I33: 0 | J33: =IF(ISNA(VLOOKUP($C33,'Coverage Reference'!$B$4:$H$19,4,FALSE))=TRUE,0,VLOOKUP($C33,'Coverage Reference'!$B$4:$H$19,4,FALSE)*(F33+H33)) -> 0 | K33: =IF(ISNA(VLOOKUP($C33,'Coverage Reference'!$B$4:$H$19,5,FALSE))=TRUE,0,VLOOKUP($C33,'Coverage Reference'!$B$4:$H$19,5,FALSE)*(F33+H33)) -> 0 | L33: =IF(ISNA(VLOOKUP($C33,'Coverage Reference'!$B$4:$H$19,6,FALSE))=TRUE,0,VLOOKUP($C33,'Coverage Reference'!$B$4:$H$19,6,FALSE)*(F33+H33)) -> 0 | M33: 2.000000 | N33: 0.250000
A34: =VLOOKUP($C34,'Article Reference'!$A$3:$C$37,2,FALSE) -> Maxtima® fungicide | B34: =VLOOKUP($C34,'Article Reference'!$A$3:$C$37,3,FALSE) -> 2 x 2.5 gal | C34: 59018071 | D34: =VLOOKUP($C34,'Article Reference'!$A$3:$D$15,4,FALSE) -> $4,508.40 | E34: =CEILING(ROUNDUP(IF(ISNA(VLOOKUP(C34,'Step 1 - Fungicide Planner'!$K$20:$N$32,4,FALSE))=TRUE,"",VLOOKUP(C34,'Step 1 - Fungicide Planner'!$K$20:$N$32,4,FALSE)),M34),N34) -> 0 | F34: 0 | G34: 0 | H34: 0 | I34: 0 | J34: =IF(ISNA(VLOOKUP($C34,'Coverage Reference'!$B$4:$H$19,4,FALSE))=TRUE,0,VLOOKUP($C34,'Coverage Reference'!$B$4:$H$19,4,FALSE)*(F34+H34)) -> 0 | K34: =IF(ISNA(VLOOKUP($C34,'Coverage Reference'!$B$4:$H$19,5,FALSE))=TRUE,0,VLOOKUP($C34,'Coverage Reference'!$B$4:$H$19,5,FALSE)*(F34+H34)) -> 0 | L34: =IF(ISNA(VLOOKUP($C34,'Coverage Reference'!$B$4:$H$19,6,FALSE))=TRUE,0,VLOOKUP($C34,'Coverage Reference'!$B$4:$H$19,6,FALSE)*(F34+H34)) -> 0 | M34: 1.000000 | N34: 0.500000
A35: =VLOOKUP($C35,'Article Reference'!$A$3:$C$37,2,FALSE) -> Navicon® Intrinsic® brand fungicide | B35: =VLOOKUP($C35,'Article Reference'!$A$3:$C$37,3,FALSE) -> 4 x 37 fl oz | C35: 59018094 | D35: =VLOOKUP($C35,'Article Reference'!$A$3:$D$15,4,FALSE) -> $2,172.64 | E35: =CEILING(ROUNDUP(IF(ISNA(VLOOKUP(C35,'Step 1 - Fungicide Planner'!$K$20:$N$32,4,FALSE))=TRUE,"",VLOOKUP(C35,'Step 1 - Fungicide Planner'!$K$20:$N$32,4,FALSE)),M35),N35) -> 0 | F35: 0 | G35: 0 | H35: 0 | I35: 0 | J35: =IF(ISNA(VLOOKUP($C35,'Coverage Reference'!$B$4:$H$19,4,FALSE))=TRUE,0,VLOOKUP($C35,'Coverage Reference'!$B$4:$H$19,4,FALSE)*(F35+H35)) -> 0 | K35: =IF(ISNA(VLOOKUP($C35,'Coverage Reference'!$B$4:$H$19,5,FALSE))=TRUE,0,VLOOKUP($C35,'Coverage Reference'!$B$4:$H$19,5,FALSE)*(F35+H35)) -> 0 | L35: =IF(ISNA(VLOOKUP($C35,'Coverage Reference'!$B$4:$H$19,6,FALSE))=TRUE,0,VLOOKUP($C35,'Coverage Reference'!$B$4:$H$19,6,FALSE)*(F35+H35)) -> 0 | M35: 2.000000 | N35: 0.250000
A36: =VLOOKUP($C36,'Article Reference'!$A$3:$C$37,2,FALSE) -> Navicon® Intrinsic® brand fungicide | B36: =VLOOKUP($C36,'Article Reference'!$A$3:$C$37,3,FALSE) -> 2 x 2.5 gal | C36: 59018095 | D36: =VLOOKUP($C36,'Article Reference'!$A$3:$D$15,4,FALSE) -> $6,998.00 | E36: =CEILING(ROUNDUP(IF(ISNA(VLOOKUP(C36,'Step 1 - Fungicide Planner'!$K$20:$N$32,4,FALSE))=TRUE,"",VLOOKUP(C36,'Step 1 - Fungicide Planner'!$K$20:$N$32,4,FALSE)),M36),N36) -> 0 | F36: 0 | G36: 0 | H36: 0 | I36: 0 | J36: =IF(ISNA(VLOOKUP($C36,'Coverage Reference'!$B$4:$H$19,4,FALSE))=TRUE,0,VLOOKUP($C36,'Coverage Reference'!$B$4:$H$19,4,FALSE)*(F36+H36)) -> 0 | K36: =IF(ISNA(VLOOKUP($C36,'Coverage Reference'!$B$4:$H$19,5,FALSE))=TRUE,0,VLOOKUP($C36,'Coverage Reference'!$B$4:$H$19,5,FALSE)*(F36+H36)) -> 0 | L36: =IF(ISNA(VLOOKUP($C36,'Coverage Reference'!$B$4:$H$19,6,FALSE))=TRUE,0,VLOOKUP($C36,'Coverage Reference'!$B$4:$H$19,6,FALSE)*(F36+H36)) -> 0 | M36: 1.000000 | N36: 0.500000
A37: =VLOOKUP($C37,'Article Reference'!$A$3:$C$37,2,FALSE) -> Xzemplar® fungicide | B37: =VLOOKUP($C37,'Article Reference'!$A$3:$C$37,3,FALSE) -> 4 x 11.4 oz | C37: 59014120 | D37: =VLOOKUP($C37,'Article Reference'!$A$3:$D$15,4,FALSE) -> $808.04 | E37: =CEILING(ROUNDUP(IF(ISNA(VLOOKUP(C37,'Step 1 - Fungicide Planner'!$K$20:$N$32,4,FALSE))=TRUE,"",VLOOKUP(C37,'Step 1 - Fungicide Planner'!$K$20:$N$32,4,FALSE)),M37),N37) -> 0 | F37: 0 | G37: 0 | H37: 0 | I37: 0 | J37: =IF(ISNA(VLOOKUP($C37,'Coverage Reference'!$B$4:$H$19,4,FALSE))=TRUE,0,VLOOKUP($C37,'Coverage Reference'!$B$4:$H$19,4,FALSE)*(F37+H37)) -> 0 | K37: =IF(ISNA(VLOOKUP($C37,'Coverage Reference'!$B$4:$H$19,5,FALSE))=TRUE,0,VLOOKUP($C37,'Coverage Reference'!$B$4:$H$19,5,FALSE)*(F37+H37)) -> 0 | L37: =IF(ISNA(VLOOKUP($C37,'Coverage Reference'!$B$4:$H$19,6,FALSE))=TRUE,0,VLOOKUP($C37,'Coverage Reference'!$B$4:$H$19,6,FALSE)*(F37+H37)) -> 0 | M37: 2.000000 | N37: 0.250000
A38: =VLOOKUP($C38,'Article Reference'!$A$3:$C$37,2,FALSE) -> Xzemplar® fungicide | B38: =VLOOKUP($C38,'Article Reference'!$A$3:$C$37,3,FALSE) -> 2 x 114 oz | C38: 59013833 | D38: =VLOOKUP($C38,'Article Reference'!$A$3:$D$15,4,FALSE) -> $3,451.92 | E38: =CEILING(ROUNDUP(IF(ISNA(VLOOKUP(C38,'Step 1 - Fungicide Planner'!$K$20:$N$32,4,FALSE))=TRUE,"",VLOOKUP(C38,'Step 1 - Fungicide Planner'!$K$20:$N$32,4,FALSE)),M38),N38) -> 0 | F38: 0 | G38: 0 | H38: 0 | I38: 0 | J38: =IF(ISNA(VLOOKUP($C38,'Coverage Reference'!$B$4:$H$19,4,FALSE))=TRUE,0,VLOOKUP($C38,'Coverage Reference'!$B$4:$H$19,4,FALSE)*(F38+H38)) -> 0 | K38: =IF(ISNA(VLOOKUP($C38,'Coverage Reference'!$B$4:$H$19,5,FALSE))=TRUE,0,VLOOKUP($C38,'Coverage Reference'!$B$4:$H$19,5,FALSE)*(F38+H38)) -> 0 | L38: =IF(ISNA(VLOOKUP($C38,'Coverage Reference'!$B$4:$H$19,6,FALSE))=TRUE,0,VLOOKUP($C38,'Coverage Reference'!$B$4:$H$19,6,FALSE)*(F38+H38)) -> 0 | M38: 1.000000 | N38: 0.500000
A39: QUALIFYING FUNGICIDE EOP SUB-TOTAL | G39: =SUM(G26:G38) -> 0 | I39: =SUM(I26:I38) -> 0 | J39: =I39+G39 -> 0
A40: Qualifying EOP Products | B40: Package | C40: Article Number | D40: Redemption Value | F40: EOP Order (Cases) | G40: EOP Sales | J40: Acres Low | K40: Acres Mid | L40: Acres High
A41: Insecticides
A42: =VLOOKUP($C42,'Article Reference'!$A$3:$D$50,2,FALSE) -> Alucion® 35 WG insecticide | B42: =VLOOKUP($C42,'Article Reference'!$A$3:$D$50,3,FALSE) -> 10 x 2.375 lbs | C42: 59024020 | D42: =VLOOKUP($C42,'Article Reference'!$A$3:$D$50,4,FALSE) -> $2,442.90 | F42: 0 | G42: =F42*D42 -> 0 | J42: =IF(ISNA(VLOOKUP($C42,'Coverage Reference'!$B$4:$H$19,4,FALSE))=TRUE,0,VLOOKUP($C42,'Coverage Reference'!$B$4:$H$19,4,FALSE)*(F42+H42)) -> 0 | K42: =IF(ISNA(VLOOKUP($C42,'Coverage Reference'!$B$4:$H$19,5,FALSE))=TRUE,0,VLOOKUP($C42,'Coverage Reference'!$B$4:$H$19,5,FALSE)*(F42+H42)) -> 0 | L42: =IF(ISNA(VLOOKUP($C42,'Coverage Reference'!$B$4:$H$19,6,FALSE))=TRUE,0,VLOOKUP($C42,'Coverage Reference'!$B$4:$H$19,6,FALSE)*(F42+H42)) -> 0
A43: =VLOOKUP($C43,'Article Reference'!$A$3:$D$50,2,FALSE) -> Ventigra® insecticide | B43: =VLOOKUP($C43,'Article Reference'!$A$3:$D$50,3,FALSE) -> 4 x 20 oz | C43: 59014680 | D43: =VLOOKUP($C43,'Article Reference'!$A$3:$D$50,4,FALSE) -> $1,266.40 | F43: 0 | G43: =F43*D43 -> 0 | J43: =IF(ISNA(VLOOKUP($C43,'Coverage Reference'!$B$4:$H$19,4,FALSE))=TRUE,0,VLOOKUP($C43,'Coverage Reference'!$B$4:$H$19,4,FALSE)*(F43+H43)) -> 0 | K43: =IF(ISNA(VLOOKUP($C43,'Coverage Reference'!$B$4:$H$19,5,FALSE))=TRUE,0,VLOOKUP($C43,'Coverage Reference'!$B$4:$H$19,5,FALSE)*(F43+H43)) -> 0 | L43: =IF(ISNA(VLOOKUP($C43,'Coverage Reference'!$B$4:$H$19,6,FALSE))=TRUE,0,VLOOKUP($C43,'Coverage Reference'!$B$4:$H$19,6,FALSE)*(F43+H43)) -> 0
A44: =VLOOKUP($C44,'Article Reference'!$A$3:$D$50,2,FALSE) -> Sultan® miticide | B44: =VLOOKUP($C44,'Article Reference'!$A$3:$D$50,3,FALSE) -> 4 x 0.125 gal | C44: 59023753 | D44: =VLOOKUP($C44,'Article Reference'!$A$3:$D$50,4,FALSE) -> $709.68 | F44: 0 | G44: =F44*D44 -> 0 | J44: =IF(ISNA(VLOOKUP($C44,'Coverage Reference'!$B$4:$H$19,4,FALSE))=TRUE,0,VLOOKUP($C44,'Coverage Reference'!$B$4:$H$19,4,FALSE)*(F44+H44)) -> 0 | K44: =IF(ISNA(VLOOKUP($C44,'Coverage Reference'!$B$4:$H$19,5,FALSE))=TRUE,0,VLOOKUP($C44,'Coverage Reference'!$B$4:$H$19,5,FALSE)*(F44+H44)) -> 0 | L44: =IF(ISNA(VLOOKUP($C44,'Coverage Reference'!$B$4:$H$19,6,FALSE))=TRUE,0,VLOOKUP($C44,'Coverage Reference'!$B$4:$H$19,6,FALSE)*(F44+H44)) -> 0
A45: =VLOOKUP($C45,'Article Reference'!$A$3:$D$50,2,FALSE) -> Amdro Pro Fire Ant Bait | B45: =VLOOKUP($C45,'Article Reference'!$A$3:$D$50,3,FALSE) -> 1 x 25lbs | C45: 59021451 | D45: =VLOOKUP($C45,'Article Reference'!$A$3:$D$50,4,FALSE) -> $536.25 | F45: 0 | G45: 0 | J45: =IF(ISNA(VLOOKUP($C45,'Coverage Reference'!$B$4:$H$19,4,FALSE))=TRUE,0,VLOOKUP($C45,'Coverage Reference'!$B$4:$H$19,4,FALSE)*(F45+H45)) -> 0 | K45: =IF(ISNA(VLOOKUP($C45,'Coverage Reference'!$B$4:$H$19,5,FALSE))=TRUE,0,VLOOKUP($C45,'Coverage Reference'!$B$4:$H$19,5,FALSE)*(F45+H45)) -> 0 | L45: =IF(ISNA(VLOOKUP($C45,'Coverage Reference'!$B$4:$H$19,6,FALSE))=TRUE,0,VLOOKUP($C45,'Coverage Reference'!$B$4:$H$19,6,FALSE)*(F45+H45)) -> 0
A46: =VLOOKUP($C46,'Article Reference'!$A$3:$D$50,2,FALSE) -> Siesta® Fire Ant Bait | B46: =VLOOKUP($C46,'Article Reference'!$A$3:$D$50,3,FALSE) -> 15 lbs | C46: 59011057 | D46: =VLOOKUP($C46,'Article Reference'!$A$3:$D$50,4,FALSE) -> $294.19 | F46: 0 | G46: 0 | J46: =IF(ISNA(VLOOKUP($C46,'Coverage Reference'!$B$4:$H$19,4,FALSE))=TRUE,0,VLOOKUP($C46,'Coverage Reference'!$B$4:$H$19,4,FALSE)*(F46+H46)) -> 0 | K46: =IF(ISNA(VLOOKUP($C46,'Coverage Reference'!$B$4:$H$19,5,FALSE))=TRUE,0,VLOOKUP($C46,'Coverage Reference'!$B$4:$H$19,5,FALSE)*(F46+H46)) -> 0 | L46: =IF(ISNA(VLOOKUP($C46,'Coverage Reference'!$B$4:$H$19,6,FALSE))=TRUE,0,VLOOKUP($C46,'Coverage Reference'!$B$4:$H$19,6,FALSE)*(F46+H46)) -> 0
A47: Fungicides
A48: =VLOOKUP($C48,'Article Reference'!$A$3:$D$50,2,FALSE) -> Orkestra® Intrinsic® brand Fungicide | B48: =VLOOKUP($C48,'Article Reference'!$A$3:$D$50,3,FALSE) -> 4 x 16 oz | C48: 59014379 | D48: =VLOOKUP($C48,'Article Reference'!$A$3:$D$50,4,FALSE) -> $668.80 | F48: 0 | G48: 0 | J48: =IF(ISNA(VLOOKUP($C48,'Coverage Reference'!$B$4:$H$19,4,FALSE))=TRUE,0,VLOOKUP($C48,'Coverage Reference'!$B$4:$H$19,4,FALSE)*(F48+H48)) -> 0 | K48: =IF(ISNA(VLOOKUP($C48,'Coverage Reference'!$B$4:$H$19,5,FALSE))=TRUE,0,VLOOKUP($C48,'Coverage Reference'!$B$4:$H$19,5,FALSE)*(F48+H48)) -> 0 | L48: =IF(ISNA(VLOOKUP($C48,'Coverage Reference'!$B$4:$H$19,6,FALSE))=TRUE,0,VLOOKUP($C48,'Coverage Reference'!$B$4:$H$19,6,FALSE)*(F48+H48)) -> 0
A49: =VLOOKUP($C49,'Article Reference'!$A$3:$D$50,2,FALSE) -> Pageant® Intrinsic® brand Fungicide | B49: =VLOOKUP($C49,'Article Reference'!$A$3:$D$50,3,FALSE) -> 4 x 1 lb | C49: 59012349 | D49: =VLOOKUP($C49,'Article Reference'!$A$3:$D$50,4,FALSE) -> $443.36 | F49: 0 | G49: 0 | J49: =IF(ISNA(VLOOKUP($C49,'Coverage Reference'!$B$4:$H$19,4,FALSE))=TRUE,0,VLOOKUP($C49,'Coverage Reference'!$B$4:$H$19,4,FALSE)*(F49+H49)) -> 0 | K49: =IF(ISNA(VLOOKUP($C49,'Coverage Reference'!$B$4:$H$19,5,FALSE))=TRUE,0,VLOOKUP($C49,'Coverage Reference'!$B$4:$H$19,5,FALSE)*(F49+H49)) -> 0 | L49: =IF(ISNA(VLOOKUP($C49,'Coverage Reference'!$B$4:$H$19,6,FALSE))=TRUE,0,VLOOKUP($C49,'Coverage Reference'!$B$4:$H$19,6,FALSE)*(F49+H49)) -> 0
A50: =VLOOKUP($C50,'Article Reference'!$A$3:$D$50,2,FALSE) -> Pillar® G Intrinsic® brand fungicide | B50: =VLOOKUP($C50,'Article Reference'!$A$3:$D$50,3,FALSE) -> 15 lbs bag | C50: 59017959 | D50: =VLOOKUP($C50,'Article Reference'!$A$3:$D$50,4,FALSE) -> $56.63 | F50: 0 | G50: =F50*D50 -> 0 | J50: =IF(ISNA(VLOOKUP($C50,'Coverage Reference'!$B$4:$H$19,4,FALSE))=TRUE,0,VLOOKUP($C50,'Coverage Reference'!$B$4:$H$19,4,FALSE)*(F50+H50)) -> 0 | K50: =IF(ISNA(VLOOKUP($C50,'Coverage Reference'!$B$4:$H$19,5,FALSE))=TRUE,0,VLOOKUP($C50,'Coverage Reference'!$B$4:$H$19,5,FALSE)*(F50+H50)) -> 0 | L50: =IF(ISNA(VLOOKUP($C50,'Coverage Reference'!$B$4:$H$19,6,FALSE))=TRUE,0,VLOOKUP($C50,'Coverage Reference'!$B$4:$H$19,6,FALSE)*(F50+H50)) -> 0
A51: =VLOOKUP($C51,'Article Reference'!$A$3:$D$50,2,FALSE) -> Pillar® G Intrinsic® brand fungicide | B51: =VLOOKUP($C51,'Article Reference'!$A$3:$D$50,3,FALSE) -> 30 lbs bag | C51: 59012784 | D51: =VLOOKUP($C51,'Article Reference'!$A$3:$D$50,4,FALSE) -> $105.00 | F51: 0 | G51: 0 | J51: =IF(ISNA(VLOOKUP($C51,'Coverage Reference'!$B$4:$H$19,4,FALSE))=TRUE,0,VLOOKUP($C51,'Coverage Reference'!$B$4:$H$19,4,FALSE)*(F51+H51)) -> 0 | K51: =IF(ISNA(VLOOKUP($C51,'Coverage Reference'!$B$4:$H$19,5,FALSE))=TRUE,0,VLOOKUP($C51,'Coverage Reference'!$B$4:$H$19,5,FALSE)*(F51+H51)) -> 0 | L51: =IF(ISNA(VLOOKUP($C51,'Coverage Reference'!$B$4:$H$19,6,FALSE))=TRUE,0,VLOOKUP($C51,'Coverage Reference'!$B$4:$H$19,6,FALSE)*(F51+H51)) -> 0
A52: Herbicides
A53: =VLOOKUP($C53,'Article Reference'!$A$3:$D$50,2,FALSE) -> Basagran® herbicide | B53: =VLOOKUP($C53,'Article Reference'!$A$3:$D$50,3,FALSE) -> 2 x 1 gal | C53: 59011636 | D53: =VLOOKUP($C53,'Article Reference'!$A$3:$D$50,4,FALSE) -> $125.58 | F53: 0 | G53: 0 | J53: =IF(ISNA(VLOOKUP($C53,'Coverage Reference'!$B$4:$H$19,4,FALSE))=TRUE,0,VLOOKUP($C53,'Coverage Reference'!$B$4:$H$19,4,FALSE)*(F53+H53)) -> 0 | K53: =IF(ISNA(VLOOKUP($C53,'Coverage Reference'!$B$4:$H$19,5,FALSE))=TRUE,0,VLOOKUP($C53,'Coverage Reference'!$B$4:$H$19,5,FALSE)*(F53+H53)) -> 0 | L53: =IF(ISNA(VLOOKUP($C53,'Coverage Reference'!$B$4:$H$19,6,FALSE))=TRUE,0,VLOOKUP($C53,'Coverage Reference'!$B$4:$H$19,6,FALSE)*(F53+H53)) -> 0
A54: =VLOOKUP($C54,'Article Reference'!$A$3:$D$50,2,FALSE) -> Drive® XLR8 herbicide | B54: =VLOOKUP($C54,'Article Reference'!$A$3:$D$50,3,FALSE) -> 4 x 0.5 gal | C54: 59011404 | D54: =VLOOKUP($C54,'Article Reference'!$A$3:$D$50,4,FALSE) -> $221.25 | F54: 0 | G54: 0 | J54: =IF(ISNA(VLOOKUP($C54,'Coverage Reference'!$B$4:$H$19,4,FALSE))=TRUE,0,VLOOKUP($C54,'Coverage Reference'!$B$4:$H$19,4,FALSE)*(F54+H54)) -> 0 | K54: =IF(ISNA(VLOOKUP($C54,'Coverage Reference'!$B$4:$H$19,5,FALSE))=TRUE,0,VLOOKUP($C54,'Coverage Reference'!$B$4:$H$19,5,FALSE)*(F54+H54)) -> 0 | L54: =IF(ISNA(VLOOKUP($C54,'Coverage Reference'!$B$4:$H$19,6,FALSE))=TRUE,0,VLOOKUP($C54,'Coverage Reference'!$B$4:$H$19,6,FALSE)*(F54+H54)) -> 0
A55: =VLOOKUP($C55,'Article Reference'!$A$3:$D$50,2,FALSE) -> Drive® XLR8 herbicide | B55: =VLOOKUP($C55,'Article Reference'!$A$3:$D$50,3,FALSE) -> 2 x 2.5 gal | C55: 59018043 | D55: =VLOOKUP($C55,'Article Reference'!$A$3:$D$50,4,FALSE) -> $514.44 | F55: 0 | G55: =F55*D55 -> 0
A56: =VLOOKUP($C56,'Article Reference'!$A$3:$D$50,2,FALSE) -> Finale® XL T&O herbicide | B56: =VLOOKUP($C56,'Article Reference'!$A$3:$D$50,3,FALSE) -> 2 x 2.5 gal | C56: 59024131 | D56: =VLOOKUP($C56,'Article Reference'!$A$3:$D$50,4,FALSE) -> $543.75 | F56: 0 | G56: 0 | J56: =IF(ISNA(VLOOKUP($C56,'Coverage Reference'!$B$4:$H$19,4,FALSE))=TRUE,0,VLOOKUP($C56,'Coverage Reference'!$B$4:$H$19,4,FALSE)*(F56+H56)) -> 0 | K56: =IF(ISNA(VLOOKUP($C56,'Coverage Reference'!$B$4:$H$19,5,FALSE))=TRUE,0,VLOOKUP($C56,'Coverage Reference'!$B$4:$H$19,5,FALSE)*(F56+H56)) -> 0 | L56: =IF(ISNA(VLOOKUP($C56,'Coverage Reference'!$B$4:$H$19,6,FALSE))=TRUE,0,VLOOKUP($C56,'Coverage Reference'!$B$4:$H$19,6,FALSE)*(F56+H56)) -> 0
A57: =VLOOKUP($C57,'Article Reference'!$A$3:$D$50,2,FALSE) -> FreeHand® 1.75G herbicide | B57: =VLOOKUP($C57,'Article Reference'!$A$3:$D$50,3,FALSE) -> 1 x 50 lb | C57: 59011296 | D57: =VLOOKUP($C57,'Article Reference'!$A$3:$D$50,4,FALSE) -> $109.50 | F57: 0 | G57: 0 | J57: =IF(ISNA(VLOOKUP($C57,'Coverage Reference'!$B$4:$H$19,4,FALSE))=TRUE,0,VLOOKUP($C57,'Coverage Reference'!$B$4:$H$19,4,FALSE)*(F57+H57)) -> 0 | K57: =IF(ISNA(VLOOKUP($C57,'Coverage Reference'!$B$4:$H$19,5,FALSE))=TRUE,0,VLOOKUP($C57,'Coverage Reference'!$B$4:$H$19,5,FALSE)*(F57+H57)) -> 0 | L57: =IF(ISNA(VLOOKUP($C57,'Coverage Reference'!$B$4:$H$19,6,FALSE))=TRUE,0,VLOOKUP($C57,'Coverage Reference'!$B$4:$H$19,6,FALSE)*(F57+H57)) -> 0
A58: =VLOOKUP($C58,'Article Reference'!$A$3:$D$50,2,FALSE) -> Pendulum® 2G herbicide | B58: =VLOOKUP($C58,'Article Reference'!$A$3:$D$50,3,FALSE) -> 40 lbs bag | C58: 59015072 | D58: =VLOOKUP($C58,'Article Reference'!$A$3:$D$50,4,FALSE) -> $85.50 | F58: 0 | G58: 0 | J58: =IF(ISNA(VLOOKUP($C58,'Coverage Reference'!$B$4:$H$19,4,FALSE))=TRUE,0,VLOOKUP($C58,'Coverage Reference'!$B$4:$H$19,4,FALSE)*(F58+H58)) -> 0 | K58: =IF(ISNA(VLOOKUP($C58,'Coverage Reference'!$B$4:$H$19,5,FALSE))=TRUE,0,VLOOKUP($C58,'Coverage Reference'!$B$4:$H$19,5,FALSE)*(F58+H58)) -> 0 | L58: =IF(ISNA(VLOOKUP($C58,'Coverage Reference'!$B$4:$H$19,6,FALSE))=TRUE,0,VLOOKUP($C58,'Coverage Reference'!$B$4:$H$19,6,FALSE)*(F58+H58)) -> 0
A59: =VLOOKUP($C59,'Article Reference'!$A$3:$D$50,2,FALSE) -> Pendulum® 2G herbicide | B59: =VLOOKUP($C59,'Article Reference'!$A$3:$D$50,3,FALSE) -> 20 lbs bag | C59: 59017972 | D59: =VLOOKUP($C59,'Article Reference'!$A$3:$D$50,4,FALSE) -> $48.50 | F59: 0 | G59: 0 | J59: =IF(ISNA(VLOOKUP($C59,'Coverage Reference'!$B$4:$H$19,4,FALSE))=TRUE,0,VLOOKUP($C59,'Coverage Reference'!$B$4:$H$19,4,FALSE)*(F59+H59)) -> 0 | K59: =IF(ISNA(VLOOKUP($C59,'Coverage Reference'!$B$4:$H$19,5,FALSE))=TRUE,0,VLOOKUP($C59,'Coverage Reference'!$B$4:$H$19,5,FALSE)*(F59+H59)) -> 0 | L59: =IF(ISNA(VLOOKUP($C59,'Coverage Reference'!$B$4:$H$19,6,FALSE))=TRUE,0,VLOOKUP($C59,'Coverage Reference'!$B$4:$H$19,6,FALSE)*(F59+H59)) -> 0
A60: =VLOOKUP($C60,'Article Reference'!$A$3:$D$50,2,FALSE) -> Pendulum® AquaCap herbicide | B60: =VLOOKUP($C60,'Article Reference'!$A$3:$D$50,3,FALSE) -> 2 x 2.5 gal | C60: 59049276 | D60: =VLOOKUP($C60,'Article Reference'!$A$3:$D$50,4,FALSE) -> $281.25 | F60: 0 | G60: =F60*D60 -> 0 | J60: =IF(ISNA(VLOOKUP($C60,'Coverage Reference'!$B$4:$H$19,4,FALSE))=TRUE,0,VLOOKUP($C60,'Coverage Reference'!$B$4:$H$19,4,FALSE)*(F60+H60)) -> 0 | K60: =IF(ISNA(VLOOKUP($C60,'Coverage Reference'!$B$4:$H$19,5,FALSE))=TRUE,0,VLOOKUP($C60,'Coverage Reference'!$B$4:$H$19,5,FALSE)*(F60+H60)) -> 0 | L60: =IF(ISNA(VLOOKUP($C60,'Coverage Reference'!$B$4:$H$19,6,FALSE))=TRUE,0,VLOOKUP($C60,'Coverage Reference'!$B$4:$H$19,6,FALSE)*(F60+H60)) -> 0
A61: =VLOOKUP($C61,'Article Reference'!$A$3:$D$50,2,FALSE) -> Pendulum® AquaCap herbicide | B61: =VLOOKUP($C61,'Article Reference'!$A$3:$D$50,3,FALSE) -> 1 x 15 gal | C61: 59011279 | D61: =VLOOKUP($C61,'Article Reference'!$A$3:$D$50,4,FALSE) -> $983.10 | F61: 0 | G61: 0 | J61: =IF(ISNA(VLOOKUP($C61,'Coverage Reference'!$B$4:$H$19,4,FALSE))=TRUE,0,VLOOKUP($C61,'Coverage Reference'!$B$4:$H$19,4,FALSE)*(F61+H61)) -> 0 | K61: =IF(ISNA(VLOOKUP($C61,'Coverage Reference'!$B$4:$H$19,5,FALSE))=TRUE,0,VLOOKUP($C61,'Coverage Reference'!$B$4:$H$19,5,FALSE)*(F61+H61)) -> 0 | L61: =IF(ISNA(VLOOKUP($C61,'Coverage Reference'!$B$4:$H$19,6,FALSE))=TRUE,0,VLOOKUP($C61,'Coverage Reference'!$B$4:$H$19,6,FALSE)*(F61+H61)) -> 0
A62: =VLOOKUP($C62,'Article Reference'!$A$3:$D$50,2,FALSE) -> Pylex® herbicide | B62: =VLOOKUP($C62,'Article Reference'!$A$3:$D$50,3,FALSE) -> 4 x 4 oz | C62: 59018005 | D62: =VLOOKUP($C62,'Article Reference'!$A$3:$D$50,4,FALSE) -> $1,376.00 | F62: 0 | G62: 0 | J62: =IF(ISNA(VLOOKUP($C62,'Coverage Reference'!$B$4:$H$19,4,FALSE))=TRUE,0,VLOOKUP($C62,'Coverage Reference'!$B$4:$H$19,4,FALSE)*(F62+H62)) -> 0 | K62: =IF(ISNA(VLOOKUP($C62,'Coverage Reference'!$B$4:$H$19,5,FALSE))=TRUE,0,VLOOKUP($C62,'Coverage Reference'!$B$4:$H$19,5,FALSE)*(F62+H62)) -> 0 | L62: =IF(ISNA(VLOOKUP($C62,'Coverage Reference'!$B$4:$H$19,6,FALSE))=TRUE,0,VLOOKUP($C62,'Coverage Reference'!$B$4:$H$19,6,FALSE)*(F62+H62)) -> 0
A63: =VLOOKUP($C63,'Article Reference'!$A$3:$D$50,2,FALSE) -> Segment® II herbicide | B63: =VLOOKUP($C63,'Article Reference'!$A$3:$D$50,3,FALSE) -> 2 x 2.5 gal | C63: 59014427 | D63: =VLOOKUP($C63,'Article Reference'!$A$3:$D$50,4,FALSE) -> $1,562.50 | F63: 0 | G63: 0 | J63: =IF(ISNA(VLOOKUP($C63,'Coverage Reference'!$B$4:$H$19,4,FALSE))=TRUE,0,VLOOKUP($C63,'Coverage Reference'!$B$4:$H$19,4,FALSE)*(F63+H63)) -> 0 | K63: =IF(ISNA(VLOOKUP($C63,'Coverage Reference'!$B$4:$H$19,5,FALSE))=TRUE,0,VLOOKUP($C63,'Coverage Reference'!$B$4:$H$19,5,FALSE)*(F63+H63)) -> 0 | L63: =IF(ISNA(VLOOKUP($C63,'Coverage Reference'!$B$4:$H$19,6,FALSE))=TRUE,0,VLOOKUP($C63,'Coverage Reference'!$B$4:$H$19,6,FALSE)*(F63+H63)) -> 0
A64: =VLOOKUP($C64,'Article Reference'!$A$3:$D$50,2,FALSE) -> Tower® herbicide | B64: =VLOOKUP($C64,'Article Reference'!$A$3:$D$50,3,FALSE) -> 2 x 2.5 gal | C64: 59014247 | D64: =VLOOKUP($C64,'Article Reference'!$A$3:$D$50,4,FALSE) -> $1,972.50 | F64: 0 | G64: 0 | J64: =IF(ISNA(VLOOKUP($C64,'Coverage Reference'!$B$4:$H$19,4,FALSE))=TRUE,0,VLOOKUP($C64,'Coverage Reference'!$B$4:$H$19,4,FALSE)*(F64+H64)) -> 0 | K64: =IF(ISNA(VLOOKUP($C64,'Coverage Reference'!$B$4:$H$19,5,FALSE))=TRUE,0,VLOOKUP($C64,'Coverage Reference'!$B$4:$H$19,5,FALSE)*(F64+H64)) -> 0 | L64: =IF(ISNA(VLOOKUP($C64,'Coverage Reference'!$B$4:$H$19,6,FALSE))=TRUE,0,VLOOKUP($C64,'Coverage Reference'!$B$4:$H$19,6,FALSE)*(F64+H64)) -> 0
A65: Colorants
A66: =VLOOKUP($C66,'Article Reference'!$A$3:$D$50,2,FALSE) -> Admiral® lake colorant | B66: =VLOOKUP($C66,'Article Reference'!$A$3:$D$50,3,FALSE) -> 4 x 1 gal | C66: 59014151 | D66: =VLOOKUP($C66,'Article Reference'!$A$3:$D$50,4,FALSE) -> $251.45 | F66: 0 | G66: =F66*D66 -> 0 | J66: =IF(ISNA(VLOOKUP($C66,'Coverage Reference'!$B$4:$H$19,4,FALSE))=TRUE,0,VLOOKUP($C66,'Coverage Reference'!$B$4:$H$19,4,FALSE)*(F66+H66)) -> 0 | K66: =IF(ISNA(VLOOKUP($C66,'Coverage Reference'!$B$4:$H$19,5,FALSE))=TRUE,0,VLOOKUP($C66,'Coverage Reference'!$B$4:$H$19,5,FALSE)*(F66+H66)) -> 0 | L66: =IF(ISNA(VLOOKUP($C66,'Coverage Reference'!$B$4:$H$19,6,FALSE))=TRUE,0,VLOOKUP($C66,'Coverage Reference'!$B$4:$H$19,6,FALSE)*(F66+H66)) -> 0
A67: =VLOOKUP($C67,'Article Reference'!$A$3:$D$50,2,FALSE) -> Black Onyx lake & pond colorant | B67: =VLOOKUP($C67,'Article Reference'!$A$3:$D$50,3,FALSE) -> 4 x 1 gal | C67: 59013424 | D67: =VLOOKUP($C67,'Article Reference'!$A$3:$D$50,4,FALSE) -> $428.00 | F67: 0 | G67: 0 | J67: =IF(ISNA(VLOOKUP($C67,'Coverage Reference'!$B$4:$H$19,4,FALSE))=TRUE,0,VLOOKUP($C67,'Coverage Reference'!$B$4:$H$19,4,FALSE)*(F67+H67)) -> 0 | K67: =IF(ISNA(VLOOKUP($C67,'Coverage Reference'!$B$4:$H$19,5,FALSE))=TRUE,0,VLOOKUP($C67,'Coverage Reference'!$B$4:$H$19,5,FALSE)*(F67+H67)) -> 0 | L67: =IF(ISNA(VLOOKUP($C67,'Coverage Reference'!$B$4:$H$19,6,FALSE))=TRUE,0,VLOOKUP($C67,'Coverage Reference'!$B$4:$H$19,6,FALSE)*(F67+H67)) -> 0
A68: =VLOOKUP($C68,'Article Reference'!$A$3:$D$50,2,FALSE) -> Green Lawnger® colorant | B68: =VLOOKUP($C68,'Article Reference'!$A$3:$D$50,3,FALSE) -> 2 x 2.5 gal | C68: 59013430 | D68: =VLOOKUP($C68,'Article Reference'!$A$3:$D$50,4,FALSE) -> $376.56 | F68: 0 | G68: 0 | J68: =IF(ISNA(VLOOKUP($C68,'Coverage Reference'!$B$4:$H$19,4,FALSE))=TRUE,0,VLOOKUP($C68,'Coverage Reference'!$B$4:$H$19,4,FALSE)*(F68+H68)) -> 0 | K68: =IF(ISNA(VLOOKUP($C68,'Coverage Reference'!$B$4:$H$19,5,FALSE))=TRUE,0,VLOOKUP($C68,'Coverage Reference'!$B$4:$H$19,5,FALSE)*(F68+H68)) -> 0 | L68: =IF(ISNA(VLOOKUP($C68,'Coverage Reference'!$B$4:$H$19,6,FALSE))=TRUE,0,VLOOKUP($C68,'Coverage Reference'!$B$4:$H$19,6,FALSE)*(F68+H68)) -> 0
A69: =VLOOKUP($C69,'Article Reference'!$A$3:$D$50,2,FALSE) -> Green Lawnger® Transition HC colorant | B69: =VLOOKUP($C69,'Article Reference'!$A$3:$D$50,3,FALSE) -> 4 x 1 gal | C69: 59013410 | D69: =VLOOKUP($C69,'Article Reference'!$A$3:$D$50,4,FALSE) -> $787.50 | F69: 0 | G69: 0 | J69: =IF(ISNA(VLOOKUP($C69,'Coverage Reference'!$B$4:$H$19,4,FALSE))=TRUE,0,VLOOKUP($C69,'Coverage Reference'!$B$4:$H$19,4,FALSE)*(F69+H69)) -> 0 | K69: =IF(ISNA(VLOOKUP($C69,'Coverage Reference'!$B$4:$H$19,5,FALSE))=TRUE,0,VLOOKUP($C69,'Coverage Reference'!$B$4:$H$19,5,FALSE)*(F69+H69)) -> 0 | L69: =IF(ISNA(VLOOKUP($C69,'Coverage Reference'!$B$4:$H$19,6,FALSE))=TRUE,0,VLOOKUP($C69,'Coverage Reference'!$B$4:$H$19,6,FALSE)*(F69+H69)) -> 0
A70: =VLOOKUP($C70,'Article Reference'!$A$3:$D$50,2,FALSE) -> Green Lawnger® Vision Pro colorant | B70: =VLOOKUP($C70,'Article Reference'!$A$3:$D$50,3,FALSE) -> 4 x 1 gal | C70: 59013342 | D70: =VLOOKUP($C70,'Article Reference'!$A$3:$D$50,4,FALSE) -> $707.50 | F70: 0 | G70: 0 | J70: =IF(ISNA(VLOOKUP($C70,'Coverage Reference'!$B$4:$H$19,4,FALSE))=TRUE,0,VLOOKUP($C70,'Coverage Reference'!$B$4:$H$19,4,FALSE)*(F70+H70)) -> 0 | K70: =IF(ISNA(VLOOKUP($C70,'Coverage Reference'!$B$4:$H$19,5,FALSE))=TRUE,0,VLOOKUP($C70,'Coverage Reference'!$B$4:$H$19,5,FALSE)*(F70+H70)) -> 0 | L70: =IF(ISNA(VLOOKUP($C70,'Coverage Reference'!$B$4:$H$19,6,FALSE))=TRUE,0,VLOOKUP($C70,'Coverage Reference'!$B$4:$H$19,6,FALSE)*(F70+H70)) -> 0
A71: Spray Indicators
A72: =VLOOKUP($C72,'Article Reference'!$A$3:$D$50,2,FALSE) -> Turf Mark spray indicator | B72: =VLOOKUP($C72,'Article Reference'!$A$3:$D$50,3,FALSE) -> 12 x 0.25 gal | C72: 59013723 | D72: =VLOOKUP($C72,'Article Reference'!$A$3:$D$50,4,FALSE) -> $247.50 | F72: 0 | G72: 0 | J72: =IF(ISNA(VLOOKUP($C72,'Coverage Reference'!$B$4:$H$19,4,FALSE))=TRUE,0,VLOOKUP($C72,'Coverage Reference'!$B$4:$H$19,4,FALSE)*(F72+H72)) -> 0 | K72: =IF(ISNA(VLOOKUP($C72,'Coverage Reference'!$B$4:$H$19,5,FALSE))=TRUE,0,VLOOKUP($C72,'Coverage Reference'!$B$4:$H$19,5,FALSE)*(F72+H72)) -> 0 | L72: =IF(ISNA(VLOOKUP($C72,'Coverage Reference'!$B$4:$H$19,6,FALSE))=TRUE,0,VLOOKUP($C72,'Coverage Reference'!$B$4:$H$19,6,FALSE)*(F72+H72)) -> 0
A73: =VLOOKUP($C73,'Article Reference'!$A$3:$D$50,2,FALSE) -> Turf Mark spray indicator | B73: =VLOOKUP($C73,'Article Reference'!$A$3:$D$50,3,FALSE) -> 1 x 30 gal | C73: 59013314 | D73: =VLOOKUP($C73,'Article Reference'!$A$3:$D$50,4,FALSE) -> $1,556.25 | F73: 0 | G73: 0 | J73: =IF(ISNA(VLOOKUP($C73,'Coverage Reference'!$B$4:$H$19,4,FALSE))=TRUE,0,VLOOKUP($C73,'Coverage Reference'!$B$4:$H$19,4,FALSE)*(F73+H73)) -> 0 | K73: =IF(ISNA(VLOOKUP($C73,'Coverage Reference'!$B$4:$H$19,5,FALSE))=TRUE,0,VLOOKUP($C73,'Coverage Reference'!$B$4:$H$19,5,FALSE)*(F73+H73)) -> 0 | L73: =IF(ISNA(VLOOKUP($C73,'Coverage Reference'!$B$4:$H$19,6,FALSE))=TRUE,0,VLOOKUP($C73,'Coverage Reference'!$B$4:$H$19,6,FALSE)*(F73+H73)) -> 0
A74: =VLOOKUP($C74,'Article Reference'!$A$3:$D$50,2,FALSE) -> Turf Mark spray indicator - blue | B74: =VLOOKUP($C74,'Article Reference'!$A$3:$D$50,3,FALSE) -> 2 x 2.5 gal | C74: 59013417 | D74: =VLOOKUP($C74,'Article Reference'!$A$3:$D$50,4,FALSE) -> $278.13 | F74: 0 | G74: 0 | J74: =IF(ISNA(VLOOKUP($C74,'Coverage Reference'!$B$4:$H$19,4,FALSE))=TRUE,0,VLOOKUP($C74,'Coverage Reference'!$B$4:$H$19,4,FALSE)*(F74+H74)) -> 0 | K74: =IF(ISNA(VLOOKUP($C74,'Coverage Reference'!$B$4:$H$19,5,FALSE))=TRUE,0,VLOOKUP($C74,'Coverage Reference'!$B$4:$H$19,5,FALSE)*(F74+H74)) -> 0 | L74: =IF(ISNA(VLOOKUP($C74,'Coverage Reference'!$B$4:$H$19,6,FALSE))=TRUE,0,VLOOKUP($C74,'Coverage Reference'!$B$4:$H$19,6,FALSE)*(F74+H74)) -> 0
A75: =VLOOKUP($C75,'Article Reference'!$A$3:$D$50,2,FALSE) -> Turf Mark spray indicator - green | B75: =VLOOKUP($C75,'Article Reference'!$A$3:$D$50,3,FALSE) -> 2 x 2.5 gal | C75: 59013486 | D75: =VLOOKUP($C75,'Article Reference'!$A$3:$D$50,4,FALSE) -> $333.88 | F75: 0 | G75: 0 | J75: =IF(ISNA(VLOOKUP($C75,'Coverage Reference'!$B$4:$H$19,4,FALSE))=TRUE,0,VLOOKUP($C75,'Coverage Reference'!$B$4:$H$19,4,FALSE)*(F75+H75)) -> 0 | K75: =IF(ISNA(VLOOKUP($C75,'Coverage Reference'!$B$4:$H$19,5,FALSE))=TRUE,0,VLOOKUP($C75,'Coverage Reference'!$B$4:$H$19,5,FALSE)*(F75+H75)) -> 0 | L75: =IF(ISNA(VLOOKUP($C75,'Coverage Reference'!$B$4:$H$19,6,FALSE))=TRUE,0,VLOOKUP($C75,'Coverage Reference'!$B$4:$H$19,6,FALSE)*(F75+H75)) -> 0
A76: QUALIFYING EOP PRODUCTS SUB-TOTAL | G76: =SUM(G42:G75) -> 0 | J76: =I76+G76 -> 0
A81: BASF has developed this calculator using formulas that approximate the rebate amount under the 2024 Early Order Program. The calculator is being shared with you for information purposes only and for your private use in preparing your own calculations. While every effort has been made to ensure the accuracy and reliability of the information and formulas, no guarantee is given nor responsibility taken by BASF for the accuracy of the calculator or the applicability to your particular circumstances. BASF PROVIDES THIS CALCULATOR AND ANY RESULT THEREFROM AS IS WITH ALL FAULTS AND WITH NO WARRANTY WHATSOEVER, EITHER EXPRESS OR IMPLIED, INCLUDING ANY WARRANTIES OF MERCHANTABILITY AND FITNESS FOR PARTICULAR PURPOSE. YOU ASSUME ANY AND ALL RISKS IN USING THE CALCULATOR AND RELYING ON THE INFORMATION CONTAINED HEREIN. IN NO CIRCUMSTANCES SHALL BASF BE LIABLE FOR ANY DAMAGES WHATSOEVER, INCLUDING BUT NOT LIMITED TO LOSS OF PROFIT, LOSS OF BUSINESS, LOSS OF SAVINGS, OR CONSEQUENTIAL DAMAGES, EVEN IF BASF HAS BEEN NOTIFIED AS SUCH.

Sheet Step 2 - OldManage Apps (hidden)
A15: Enter Acres for your Course (Required)
A16: Fairways & Tees Acres | C16: 40.00
A17: Greens Acres | C17: 10.00
A19: Please complete Yellow "Use Area" cells with either Fairways or Greens
A20: Fungicide Planner | M20: Fairways
A21: Product Name | B21: Case Size | C21: Use Area | D21: Low Rate | F21: Mid Rate | H21: High Rate | M21: Greens
D22: Total Acres | E22: Applications | F22: Total Acres | G22: Applications | H22: Total Acres | I22: Applications
A23: Emerald | B23: 10 x .49 lb. | C23: Fairways | D23: =SUMIFS('Step 2 - Order Planner'!J$26:J$38,'Step 2 - Order Planner'!$C$26:$C$38,$K23)+SUMIFS('Step 2 - Order Planner'!J$42:J$75,'Step 2 - Order Planner'!$C$42:$C$75,$K23) -> 0 | E23: =IF(OR($C$16=0,$C$17=0),"Please Enter Acreage",IF(C23="Greens",D23/$C$17,IF(C23="Fairways",D23/$C$16,0))) -> 0 | F23: =SUMIFS('Step 2 - Order Planner'!K$26:K$38,'Step 2 - Order Planner'!$C$26:$C$38,$K23)+SUMIFS('Step 2 - Order Planner'!K$42:K$75,'Step 2 - Order Planner'!$C$42:$C$75,$K23) -> 0 | G23: =IF(OR($C$16=0,$C$17=0),"Please Enter Acreage",IF(C23="Greens",F23/$C$17,IF(C23="Fairways",F23/$C$16,0))) -> 0 | H23: =SUMIFS('Step 2 - Order Planner'!L$26:L$38,'Step 2 - Order Planner'!$C$26:$C$38,$K23)+SUMIFS('Step 2 - Order Planner'!L$42:L$75,'Step 2 - Order Planner'!$C$42:$C$75,$K23) -> 0 | I23: =IF(OR($C$16=0,$C$17=0),"Please Enter Acreage",IF(C23="Greens",H23/$C$17,IF(C23="Fairways",H23/$C$16,0))) -> 0 | K23: 59021463
B24: 50 x .49 lb. | D24: =SUMIFS('Step 2 - Order Planner'!J$26:J$38,'Step 2 - Order Planner'!$C$26:$C$38,$K24)+SUMIFS('Step 2 - Order Planner'!J$42:J$75,'Step 2 - Order Planner'!$C$42:$C$75,$K24) -> 0 | E24: 0 | F24: =SUMIFS('Step 2 - Order Planner'!K$26:K$38,'Step 2 - Order Planner'!$C$26:$C$38,$K24)+SUMIFS('Step 2 - Order Planner'!K$42:K$75,'Step 2 - Order Planner'!$C$42:$C$75,$K24) -> 0 | G24: =IF(OR($C$16=0,$C$17=0),"Please Enter Acreage",IF(C24="Greens",F24/$C$17,IF(C24="Fairways",F24/$C$16,0))) -> 0 | H24: =SUMIFS('Step 2 - Order Planner'!L$26:L$38,'Step 2 - Order Planner'!$C$26:$C$38,$K24)+SUMIFS('Step 2 - Order Planner'!L$42:L$75,'Step 2 - Order Planner'!$C$42:$C$75,$K24) -> 0 | I24: 0 | K24: 59012825
A25: Honor | B25: 1 x 36 lb | D25: =SUMIFS('Step 2 - Order Planner'!J$26:J$38,'Step 2 - Order Planner'!$C$26:$C$38,$K25)+SUMIFS('Step 2 - Order Planner'!J$42:J$75,'Step 2 - Order Planner'!$C$42:$C$75,$K25) -> 0 | E25: 0 | F25: =SUMIFS('Step 2 - Order Planner'!K$26:K$38,'Step 2 - Order Planner'!$C$26:$C$38,$K25)+SUMIFS('Step 2 - Order Planner'!K$42:K$75,'Step 2 - Order Planner'!$C$42:$C$75,$K25) -> 0 | G25: =IF(OR($C$16=0,$C$17=0),"Please Enter Acreage",IF(C25="Greens",F25/$C$17,IF(C25="Fairways",F25/$C$16,0))) -> 0 | H25: =SUMIFS('Step 2 - Order Planner'!L$26:L$38,'Step 2 - Order Planner'!$C$26:$C$38,$K25)+SUMIFS('Step 2 - Order Planner'!L$42:L$75,'Step 2 - Order Planner'!$C$42:$C$75,$K25) -> 0 | I25: 0 | K25: 59012885
B26: 6 x 3 lb | D26: =SUMIFS('Step 2 - Order Planner'!J$26:J$38,'Step 2 - Order Planner'!$C$26:$C$38,$K26)+SUMIFS('Step 2 - Order Planner'!J$42:J$75,'Step 2 - Order Planner'!$C$42:$C$75,$K26) -> 0 | E26: 0 | F26: =SUMIFS('Step 2 - Order Planner'!K$26:K$38,'Step 2 - Order Planner'!$C$26:$C$38,$K26)+SUMIFS('Step 2 - Order Planner'!K$42:K$75,'Step 2 - Order Planner'!$C$42:$C$75,$K26) -> 0 | G26: 0 | H26: =SUMIFS('Step 2 - Order Planner'!L$26:L$38,'Step 2 - Order Planner'!$C$26:$C$38,$K26)+SUMIFS('Step 2 - Order Planner'!L$42:L$75,'Step 2 - Order Planner'!$C$42:$C$75,$K26) -> 0 | I26: 0 | K26: 59012350
A27: Insignia SC | B27: 2 x 2.5 gal | D27: =SUMIFS('Step 2 - Order Planner'!J$26:J$38,'Step 2 - Order Planner'!$C$26:$C$38,$K27)+SUMIFS('Step 2 - Order Planner'!J$42:J$75,'Step 2 - Order Planner'!$C$42:$C$75,$K27) -> 0 | E27: 0 | F27: =SUMIFS('Step 2 - Order Planner'!K$26:K$38,'Step 2 - Order Planner'!$C$26:$C$38,$K27)+SUMIFS('Step 2 - Order Planner'!K$42:K$75,'Step 2 - Order Planner'!$C$42:$C$75,$K27) -> 0 | G27: =IF(OR($C$16=0,$C$17=0),"Please Enter Acreage",IF(C27="Greens",F27/$C$17,IF(C27="Fairways",F27/$C$16,0))) -> 0 | H27: =SUMIFS('Step 2 - Order Planner'!L$26:L$38,'Step 2 - Order Planner'!$C$26:$C$38,$K27)+SUMIFS('Step 2 - Order Planner'!L$42:L$75,'Step 2 - Order Planner'!$C$42:$C$75,$K27) -> 0 | I27: 0 | K27: 59014135
B28: 4 x 30.5 oz | D28: =SUMIFS('Step 2 - Order Planner'!J$26:J$38,'Step 2 - Order Planner'!$C$26:$C$38,$K28)+SUMIFS('Step 2 - Order Planner'!J$42:J$75,'Step 2 - Order Planner'!$C$42:$C$75,$K28) -> 0 | E28: 0 | F28: =SUMIFS('Step 2 - Order Planner'!K$26:K$38,'Step 2 - Order Planner'!$C$26:$C$38,$K28)+SUMIFS('Step 2 - Order Planner'!K$42:K$75,'Step 2 - Order Planner'!$C$42:$C$75,$K28) -> 0 | G28: =IF(OR($C$16=0,$C$17=0),"Please Enter Acreage",IF(C28="Greens",F28/$C$17,IF(C28="Fairways",F28/$C$16,0))) -> 0 | H28: =SUMIFS('Step 2 - Order Planner'!L$26:L$38,'Step 2 - Order Planner'!$C$26:$C$38,$K28)+SUMIFS('Step 2 - Order Planner'!L$42:L$75,'Step 2 - Order Planner'!$C$42:$C$75,$K28) -> 0 | I28: =IF(OR($C$16=0,$C$17=0),"Please Enter Acreage",IF(C28="Greens",H28/$C$17,IF(C28="Fairways",H28/$C$16,0))) -> 0 | K28: 59014134
A29: Lexicon | B29: 4 x 21 oz | D29: =SUMIFS('Step 2 - Order Planner'!J$26:J$38,'Step 2 - Order Planner'!$C$26:$C$38,$K29)+SUMIFS('Step 2 - Order Planner'!J$42:J$75,'Step 2 - Order Planner'!$C$42:$C$75,$K29) -> 0 | E29: 0 | F29: =SUMIFS('Step 2 - Order Planner'!K$26:K$38,'Step 2 - Order Planner'!$C$26:$C$38,$K29)+SUMIFS('Step 2 - Order Planner'!K$42:K$75,'Step 2 - Order Planner'!$C$42:$C$75,$K29) -> 0 | G29: 0 | H29: =SUMIFS('Step 2 - Order Planner'!L$26:L$38,'Step 2 - Order Planner'!$C$26:$C$38,$K29)+SUMIFS('Step 2 - Order Planner'!L$42:L$75,'Step 2 - Order Planner'!$C$42:$C$75,$K29) -> 0 | I29: 0 | K29: 59013840
A30: Maxtima | B30: 4 x26 oz | D30: =SUMIFS('Step 2 - Order Planner'!J$26:J$38,'Step 2 - Order Planner'!$C$26:$C$38,$K30)+SUMIFS('Step 2 - Order Planner'!J$42:J$75,'Step 2 - Order Planner'!$C$42:$C$75,$K30) -> 0 | E30: 0 | F30: =SUMIFS('Step 2 - Order Planner'!K$26:K$38,'Step 2 - Order Planner'!$C$26:$C$38,$K30)+SUMIFS('Step 2 - Order Planner'!K$42:K$75,'Step 2 - Order Planner'!$C$42:$C$75,$K30) -> 0 | G30: 0 | H30: =SUMIFS('Step 2 - Order Planner'!L$26:L$38,'Step 2 - Order Planner'!$C$26:$C$38,$K30)+SUMIFS('Step 2 - Order Planner'!L$42:L$75,'Step 2 - Order Planner'!$C$42:$C$75,$K30) -> 0 | I30: 0 | K30: 59018087
B31: 2x 2.5 gal | D31: =SUMIFS('Step 2 - Order Planner'!J$26:J$38,'Step 2 - Order Planner'!$C$26:$C$38,$K31)+SUMIFS('Step 2 - Order Planner'!J$42:J$75,'Step 2 - Order Planner'!$C$42:$C$75,$K31) -> 0 | E31: 0 | F31: =SUMIFS('Step 2 - Order Planner'!K$26:K$38,'Step 2 - Order Planner'!$C$26:$C$38,$K31)+SUMIFS('Step 2 - Order Planner'!K$42:K$75,'Step 2 - Order Planner'!$C$42:$C$75,$K31) -> 0 | G31: =IF(OR($C$16=0,$C$17=0),"Please Enter Acreage",IF(C31="Greens",F31/$C$17,IF(C31="Fairways",F31/$C$16,0))) -> 0 | H31: =SUMIFS('Step 2 - Order Planner'!L$26:L$38,'Step 2 - Order Planner'!$C$26:$C$38,$K31)+SUMIFS('Step 2 - Order Planner'!L$42:L$75,'Step 2 - Order Planner'!$C$42:$C$75,$K31) -> 0 | I31: 0 | K31: 59018071
A32: Navicon | B32: 4x37 fl oz | D32: =SUMIFS('Step 2 - Order Planner'!J$26:J$38,'Step 2 - Order Planner'!$C$26:$C$38,$K32)+SUMIFS('Step 2 - Order Planner'!J$42:J$75,'Step 2 - Order Planner'!$C$42:$C$75,$K32) -> 0 | E32: 0 | F32: =SUMIFS('Step 2 - Order Planner'!K$26:K$38,'Step 2 - Order Planner'!$C$26:$C$38,$K32)+SUMIFS('Step 2 - Order Planner'!K$42:K$75,'Step 2 - Order Planner'!$C$42:$C$75,$K32) -> 0 | G32: 0 | H32: =SUMIFS('Step 2 - Order Planner'!L$26:L$38,'Step 2 - Order Planner'!$C$26:$C$38,$K32)+SUMIFS('Step 2 - Order Planner'!L$42:L$75,'Step 2 - Order Planner'!$C$42:$C$75,$K32) -> 0 | I32: 0 | K32: 59018094
B33: 2x2.5 gal | D33: =SUMIFS('Step 2 - Order Planner'!J$26:J$38,'Step 2 - Order Planner'!$C$26:$C$38,$K33)+SUMIFS('Step 2 - Order Planner'!J$42:J$75,'Step 2 - Order Planner'!$C$42:$C$75,$K33) -> 0 | E33: 0 | F33: =SUMIFS('Step 2 - Order Planner'!K$26:K$38,'Step 2 - Order Planner'!$C$26:$C$38,$K33)+SUMIFS('Step 2 - Order Planner'!K$42:K$75,'Step 2 - Order Planner'!$C$42:$C$75,$K33) -> 0 | G33: 0 | H33: =SUMIFS('Step 2 - Order Planner'!L$26:L$38,'Step 2 - Order Planner'!$C$26:$C$38,$K33)+SUMIFS('Step 2 - Order Planner'!L$42:L$75,'Step 2 - Order Planner'!$C$42:$C$75,$K33) -> 0 | I33: 0 | K33: 59018095
A34: Pillar G | B34: 15 lbs | D34: =SUMIFS('Step 2 - Order Planner'!J$26:J$38,'Step 2 - Order Planner'!$C$26:$C$38,$K34)+SUMIFS('Step 2 - Order Planner'!J$42:J$75,'Step 2 - Order Planner'!$C$42:$C$75,$K34) -> 0 | E34: 0 | F34: =SUMIFS('Step 2 - Order Planner'!K$26:K$38,'Step 2 - Order Planner'!$C$26:$C$38,$K34)+SUMIFS('Step 2 - Order Planner'!K$42:K$75,'Step 2 - Order Planner'!$C$42:$C$75,$K34) -> 0 | G34: =IF(OR($C$16=0,$C$17=0),"Please Enter Acreage",IF(C34="Greens",F34/$C$17,IF(C34="Fairways",F34/$C$16,0))) -> 0 | H34: =SUMIFS('Step 2 - Order Planner'!L$26:L$38,'Step 2 - Order Planner'!$C$26:$C$38,$K34)+SUMIFS('Step 2 - Order Planner'!L$42:L$75,'Step 2 - Order Planner'!$C$42:$C$75,$K34) -> 0 | I34: 0 | K34: 59017959
B35: 30 lbs | D35: =SUMIFS('Step 2 - Order Planner'!J$26:J$38,'Step 2 - Order Planner'!$C$26:$C$38,$K35)+SUMIFS('Step 2 - Order Planner'!J$42:J$75,'Step 2 - Order Planner'!$C$42:$C$75,$K35) -> 0 | E35: 0 | F35: =SUMIFS('Step 2 - Order Planner'!K$26:K$38,'Step 2 - Order Planner'!$C$26:$C$38,$K35)+SUMIFS('Step 2 - Order Planner'!K$42:K$75,'Step 2 - Order Planner'!$C$42:$C$75,$K35) -> 0 | G35: 0 | H35: =SUMIFS('Step 2 - Order Planner'!L$26:L$38,'Step 2 - Order Planner'!$C$26:$C$38,$K35)+SUMIFS('Step 2 - Order Planner'!L$42:L$75,'Step 2 - Order Planner'!$C$42:$C$75,$K35) -> 0 | I35: 0 | K35: 59012784
A36: Xzemplar | B36: 2 x 114 oz | D36: =SUMIFS('Step 2 - Order Planner'!J$26:J$38,'Step 2 - Order Planner'!$C$26:$C$38,$K36)+SUMIFS('Step 2 - Order Planner'!J$42:J$75,'Step 2 - Order Planner'!$C$42:$C$75,$K36) -> 0 | E36: =IF(OR($C$16=0,$C$17=0),"Please Enter Acreage",IF(C36="Greens",D36/$C$17,IF(C36="Fairways",D36/$C$16,0))) -> 0 | F36: =SUMIFS('Step 2 - Order Planner'!K$26:K$38,'Step 2 - Order Planner'!$C$26:$C$38,$K36)+SUMIFS('Step 2 - Order Planner'!K$42:K$75,'Step 2 - Order Planner'!$C$42:$C$75,$K36) -> 0 | G36: =IF(OR($C$16=0,$C$17=0),"Please Enter Acreage",IF(C36="Greens",F36/$C$17,IF(C36="Fairways",F36/$C$16,0))) -> 0 | H36: =SUMIFS('Step 2 - Order Planner'!L$26:L$38,'Step 2 - Order Planner'!$C$26:$C$38,$K36)+SUMIFS('Step 2 - Order Planner'!L$42:L$75,'Step 2 - Order Planner'!$C$42:$C$75,$K36) -> 0 | I36: =IF(OR($C$16=0,$C$17=0),"Please Enter Acreage",IF(C36="Greens",H36/$C$17,IF(C36="Fairways",H36/$C$16,0))) -> 0 | K36: 59013833
B37: 4 x 11.4 oz | D37: =SUMIFS('Step 2 - Order Planner'!J$26:J$38,'Step 2 - Order Planner'!$C$26:$C$38,$K37)+SUMIFS('Step 2 - Order Planner'!J$42:J$75,'Step 2 - Order Planner'!$C$42:$C$75,$K37) -> 0 | E37: 0 | F37: =SUMIFS('Step 2 - Order Planner'!K$26:K$38,'Step 2 - Order Planner'!$C$26:$C$38,$K37)+SUMIFS('Step 2 - Order Planner'!K$42:K$75,'Step 2 - Order Planner'!$C$42:$C$75,$K37) -> 0 | G37: 0 | H37: =SUMIFS('Step 2 - Order Planner'!L$26:L$38,'Step 2 - Order Planner'!$C$26:$C$38,$K37)+SUMIFS('Step 2 - Order Planner'!L$42:L$75,'Step 2 - Order Planner'!$C$42:$C$75,$K37) -> 0 | I37: 0 | K37: 59014120
A40: BASF has developed this calculator using formulas that approximate the rebate amount under the 2020 Early Order Program. The calculator is being shared with you for information purposes only and for your private use in preparing your own calculations. While every effort has been made to ensure the accuracy and reliability of the information and formulas, no guarantee is given nor responsibility taken by BASF for the accuracy of the calculator or the applicability to your particular circumstances. BASF PROVIDES THIS CALCULATOR AND ANY RESULT THEREFROM AS IS WITH ALL FAULTS AND WITH NO WARRANTY WHATSOEVER, EITHER EXPRESS OR IMPLIED, INCLUDING ANY WARRANTIES OF MERCHANTABILITY AND FITNESS FOR PARTICULAR PURPOSE. YOU ASSUME ANY AND ALL RISKS IN USING THE CALCULATOR AND RELYING ON THE INFORMATION CONTAINED HEREIN. IN NO CIRCUMSTANCES SHALL BASF BE LIABLE FOR ANY DAMAGES WHATSOEVER, INCLUDING BUT NOT LIMITED TO LOSS OF PROFIT, LOSS OF BUSINESS, LOSS OF SAVINGS, OR CONSEQUENTIAL DAMAGES, EVEN IF BASF HAS BEEN NOTIFIED AS SUCH.

Sheet Step 3 - Review Order
A11: BASF 2024 EOP ORDER SUMMARY
A13: =NOW() -> 2023-08-08T16:56:15.450 | D13: Rebate Summary
A14: Order For | B14: Order Prepared By | D14: Total Purchase | F14: ='Step 2 - Order Planner'!H21 -> 0
A15: <Enter Customer Name> | B15: <Enter Name> | D15: DYOP Rebate Attained | F15: ='Step 2 - Order Planner'!B20 -> 0%
A16: <Enter Business Name> | B16: <Enter Business Name> | D16: Across-The-Course Rebate | F16: ='Step 2 - Order Planner'!B21 -> 0%
A17: <City, ST Zip Code> | B17: <City, ST Zip Code> | D17: Insignia® Intrinsic® Kicker - 5% | F17: ='Step 2 - Order Planner'!B22 -> 0
A18: <Phone> | B18: <Phone> | D18: Honor® Intrinsic® Kicker - 5% | F18: ='Step 2 - Order Planner'!B23 -> 0
A19: <email address> | B19: <email address> | D19: Total EOP Rebate | F19: ='Step 2 - Order Planner'!H23 -> 0
A23: Your Order Detail
A25: Product | B25: Package | C25: Article No. | D25: Redemption Value | E25: Quantity | F25: Total
A26: =VLOOKUP($C26,'Article Reference'!$A$3:$D$50,2,FALSE) -> Emerald® fungicide | B26: =VLOOKUP($C26,'Article Reference'!$A$3:$D$50,3,FALSE) -> 10 x 0.49 lb | C26: 59021463 | D26: =VLOOKUP($C26,'Article Reference'!$A$3:$D$50,4,FALSE) -> $1,187.40 | E26: =VLOOKUP(C26,'Step 2 - Order Planner'!$C$26:$H$75,4,FALSE)+VLOOKUP(C26,'Step 2 - Order Planner'!$C$26:$H$75,6,FALSE) -> 0 | F26: =E26*D26 -> 0
A27: =VLOOKUP($C27,'Article Reference'!$A$3:$D$50,2,FALSE) -> Encartis® fungicide | B27: =VLOOKUP($C27,'Article Reference'!$A$3:$D$50,3,FALSE) -> 2 x 2.5 gal | C27: 59014003 | D27: =VLOOKUP($C27,'Article Reference'!$A$3:$D$50,4,FALSE) -> $645.66 | E27: =VLOOKUP(C27,'Step 2 - Order Planner'!$C$26:$H$75,4,FALSE)+VLOOKUP(C27,'Step 2 - Order Planner'!$C$26:$H$75,6,FALSE) -> 0 | F27: =E27*D27 -> 0
A28: =VLOOKUP($C28,'Article Reference'!$A$3:$D$50,2,FALSE) -> Honor® Intrinsic® brand fungicide | B28: =VLOOKUP($C28,'Article Reference'!$A$3:$D$50,3,FALSE) -> 6 x 3 lb | C28: 59012350 | D28: =VLOOKUP($C28,'Article Reference'!$A$3:$D$50,4,FALSE) -> $3,303.54 | E28: =VLOOKUP(C28,'Step 2 - Order Planner'!$C$26:$H$75,4,FALSE)+VLOOKUP(C28,'Step 2 - Order Planner'!$C$26:$H$75,6,FALSE) -> 0 | F28: 0
A29: =VLOOKUP($C29,'Article Reference'!$A$3:$D$50,2,FALSE) -> Honor® Intrinsic® brand fungicide | B29: =VLOOKUP($C29,'Article Reference'!$A$3:$D$50,3,FALSE) -> 1 x 36 lb | C29: 59012885 | D29: =VLOOKUP($C29,'Article Reference'!$A$3:$D$50,4,FALSE) -> $4,867.20 | E29: =VLOOKUP(C29,'Step 2 - Order Planner'!$C$26:$H$75,4,FALSE)+VLOOKUP(C29,'Step 2 - Order Planner'!$C$26:$H$75,6,FALSE) -> 0 | F29: 0
A30: =VLOOKUP($C30,'Article Reference'!$A$3:$D$50,2,FALSE) -> Insignia® SC Intrinsic® brand fungicide | B30: =VLOOKUP($C30,'Article Reference'!$A$3:$D$50,3,FALSE) -> 4 x 30.5 fl oz | C30: 59014134 | D30: =VLOOKUP($C30,'Article Reference'!$A$3:$D$50,4,FALSE) -> $2,169.16 | E30: =VLOOKUP(C30,'Step 2 - Order Planner'!$C$26:$H$75,4,FALSE)+VLOOKUP(C30,'Step 2 - Order Planner'!$C$26:$H$75,6,FALSE) -> 0 | F30: 0
A31: =VLOOKUP($C31,'Article Reference'!$A$3:$D$50,2,FALSE) -> Insignia® SC Intrinsic® brand fungicide | B31: =VLOOKUP($C31,'Article Reference'!$A$3:$D$50,3,FALSE) -> 2 x 2.5 gal | C31: 59014135 | D31: =VLOOKUP($C31,'Article Reference'!$A$3:$D$50,4,FALSE) -> $7,225.10 | E31: =VLOOKUP(C31,'Step 2 - Order Planner'!$C$26:$H$75,4,FALSE)+VLOOKUP(C31,'Step 2 - Order Planner'!$C$26:$H$75,6,FALSE) -> 0 | F31: 0
A32: =VLOOKUP($C32,'Article Reference'!$A$3:$D$50,2,FALSE) -> Lexicon® Intrinsic® brand fungicide | B32: =VLOOKUP($C32,'Article Reference'!$A$3:$D$50,3,FALSE) -> 4 x 21 oz | C32: 59027998 | D32: =VLOOKUP($C32,'Article Reference'!$A$3:$D$50,4,FALSE) -> $2,418.36 | E32: =VLOOKUP(C32,'Step 2 - Order Planner'!$C$26:$H$75,4,FALSE)+VLOOKUP(C32,'Step 2 - Order Planner'!$C$26:$H$75,6,FALSE) -> 0 | F32: 0
A33: =VLOOKUP($C33,'Article Reference'!$A$3:$D$50,2,FALSE) -> Maxtima® fungicide | B33: =VLOOKUP($C33,'Article Reference'!$A$3:$D$50,3,FALSE) -> 4 x 26 oz | C33: 59018087 | D33: =VLOOKUP($C33,'Article Reference'!$A$3:$D$50,4,FALSE) -> $907.92 | E33: =VLOOKUP(C33,'Step 2 - Order Planner'!$C$26:$H$75,4,FALSE)+VLOOKUP(C33,'Step 2 - Order Planner'!$C$26:$H$75,6,FALSE) -> 0 | F33: 0
A34: =VLOOKUP($C34,'Article Reference'!$A$3:$D$50,2,FALSE) -> Maxtima® fungicide | B34: =VLOOKUP($C34,'Article Reference'!$A$3:$D$50,3,FALSE) -> 2 x 2.5 gal | C34: 59018071 | D34: =VLOOKUP($C34,'Article Reference'!$A$3:$D$50,4,FALSE) -> $4,508.40 | E34: =VLOOKUP(C34,'Step 2 - Order Planner'!$C$26:$H$75,4,FALSE)+VLOOKUP(C34,'Step 2 - Order Planner'!$C$26:$H$75,6,FALSE) -> 0 | F34: 0
A35: =VLOOKUP($C35,'Article Reference'!$A$3:$D$50,2,FALSE) -> Navicon® Intrinsic® brand fungicide | B35: =VLOOKUP($C35,'Article Reference'!$A$3:$D$50,3,FALSE) -> 4 x 37 fl oz | C35: 59018094 | D35: =VLOOKUP($C35,'Article Reference'!$A$3:$D$50,4,FALSE) -> $2,172.64 | E35: =VLOOKUP(C35,'Step 2 - Order Planner'!$C$26:$H$75,4,FALSE)+VLOOKUP(C35,'Step 2 - Order Planner'!$C$26:$H$75,6,FALSE) -> 0 | F35: 0
A36: =VLOOKUP($C36,'Article Reference'!$A$3:$D$50,2,FALSE) -> Navicon® Intrinsic® brand fungicide | B36: =VLOOKUP($C36,'Article Reference'!$A$3:$D$50,3,FALSE) -> 2 x 2.5 gal | C36: 59018095 | D36: =VLOOKUP($C36,'Article Reference'!$A$3:$D$50,4,FALSE) -> $6,998.00 | E36: =VLOOKUP(C36,'Step 2 - Order Planner'!$C$26:$H$75,4,FALSE)+VLOOKUP(C36,'Step 2 - Order Planner'!$C$26:$H$75,6,FALSE) -> 0 | F36: 0
A37: =VLOOKUP($C37,'Article Reference'!$A$3:$D$50,2,FALSE) -> Xzemplar® fungicide | B37: =VLOOKUP($C37,'Article Reference'!$A$3:$D$50,3,FALSE) -> 4 x 11.4 oz | C37: 59014120 | D37: =VLOOKUP($C37,'Article Reference'!$A$3:$D$50,4,FALSE) -> $808.04 | E37: =VLOOKUP(C37,'Step 2 - Order Planner'!$C$26:$H$75,4,FALSE)+VLOOKUP(C37,'Step 2 - Order Planner'!$C$26:$H$75,6,FALSE) -> 0 | F37: 0
A38: =VLOOKUP($C38,'Article Reference'!$A$3:$D$50,2,FALSE) -> Xzemplar® fungicide | B38: =VLOOKUP($C38,'Article Reference'!$A$3:$D$50,3,FALSE) -> 2 x 114 oz | C38: 59013833 | D38: =VLOOKUP($C38,'Article Reference'!$A$3:$D$50,4,FALSE) -> $3,451.92 | E38: =VLOOKUP(C38,'Step 2 - Order Planner'!$C$26:$H$75,4,FALSE)+VLOOKUP(C38,'Step 2 - Order Planner'!$C$26:$H$75,6,FALSE) -> 0 | F38: 0
A39: Design-Your-Own-Program Rebate Purchases Sub-Total | F39: ='Step 2 - Order Planner'!H17 -> 0
A40: =VLOOKUP($C40,'Article Reference'!$A$3:$D$50,2,FALSE) -> Admiral® lake colorant | B40: =VLOOKUP($C40,'Article Reference'!$A$3:$D$50,3,FALSE) -> 4 x 1 gal | C40: 59014151 | D40: =VLOOKUP($C40,'Article Reference'!$A$3:$D$50,4,FALSE) -> $251.45 | E40: =VLOOKUP(C40,'Step 2 - Order Planner'!$C$26:$H$75,4,FALSE)+VLOOKUP(C40,'Step 2 - Order Planner'!$C$26:$H$75,6,FALSE) -> 0 | F40: 0
A41: =VLOOKUP($C41,'Article Reference'!$A$3:$D$50,2,FALSE) -> Alucion® 35 WG insecticide | B41: =VLOOKUP($C41,'Article Reference'!$A$3:$D$50,3,FALSE) -> 10 x 2.375 lbs | C41: 59024020 | D41: =VLOOKUP($C41,'Article Reference'!$A$3:$D$50,4,FALSE) -> $2,442.90 | E41: =VLOOKUP(C41,'Step 2 - Order Planner'!$C$26:$H$75,4,FALSE)+VLOOKUP(C41,'Step 2 - Order Planner'!$C$26:$H$75,6,FALSE) -> 0 | F41: =E41*D41 -> 0
A42: =VLOOKUP($C42,'Article Reference'!$A$3:$D$50,2,FALSE) -> Amdro Pro Fire Ant Bait | B42: =VLOOKUP($C42,'Article Reference'!$A$3:$D$50,3,FALSE) -> 1 x 25lbs | C42: 59021451 | D42: =VLOOKUP($C42,'Article Reference'!$A$3:$D$50,4,FALSE) -> $536.25 | E42: =VLOOKUP(C42,'Step 2 - Order Planner'!$C$26:$H$75,4,FALSE)+VLOOKUP(C42,'Step 2 - Order Planner'!$C$26:$H$75,6,FALSE) -> 0 | F42: 0
A43: =VLOOKUP($C43,'Article Reference'!$A$3:$D$50,2,FALSE) -> Basagran® herbicide | B43: =VLOOKUP($C43,'Article Reference'!$A$3:$D$50,3,FALSE) -> 2 x 1 gal | C43: 59011636 | D43: =VLOOKUP($C43,'Article Reference'!$A$3:$D$50,4,FALSE) -> $125.58 | E43: =VLOOKUP(C43,'Step 2 - Order Planner'!$C$26:$H$75,4,FALSE)+VLOOKUP(C43,'Step 2 - Order Planner'!$C$26:$H$75,6,FALSE) -> 0 | F43: 0
A44: =VLOOKUP($C44,'Article Reference'!$A$3:$D$50,2,FALSE) -> Black Onyx lake & pond colorant | B44: =VLOOKUP($C44,'Article Reference'!$A$3:$D$50,3,FALSE) -> 4 x 1 gal | C44: 59013424 | D44: =VLOOKUP($C44,'Article Reference'!$A$3:$D$50,4,FALSE) -> $428.00 | E44: =VLOOKUP(C44,'Step 2 - Order Planner'!$C$26:$H$75,4,FALSE)+VLOOKUP(C44,'Step 2 - Order Planner'!$C$26:$H$75,6,FALSE) -> 0 | F44: 0
A45: =VLOOKUP($C45,'Article Reference'!$A$3:$D$50,2,FALSE) -> Drive® XLR8 herbicide | B45: =VLOOKUP($C45,'Article Reference'!$A$3:$D$50,3,FALSE) -> 4 x 0.5 gal | C45: 59011404 | D45: =VLOOKUP($C45,'Article Reference'!$A$3:$D$50,4,FALSE) -> $221.25 | E45: =VLOOKUP(C45,'Step 2 - Order Planner'!$C$26:$H$75,4,FALSE)+VLOOKUP(C45,'Step 2 - Order Planner'!$C$26:$H$75,6,FALSE) -> 0 | F45: 0
A46: =VLOOKUP($C46,'Article Reference'!$A$3:$D$50,2,FALSE) -> Drive® XLR8 herbicide | B46: =VLOOKUP($C46,'Article Reference'!$A$3:$D$50,3,FALSE) -> 2 x 2.5 gal | C46: 59018043 | D46: =VLOOKUP($C46,'Article Reference'!$A$3:$D$50,4,FALSE) -> $514.44 | E46: =VLOOKUP(C46,'Step 2 - Order Planner'!$C$26:$H$75,4,FALSE)+VLOOKUP(C46,'Step 2 - Order Planner'!$C$26:$H$75,6,FALSE) -> 0 | F46: =E46*D46 -> 0
A47: =VLOOKUP($C47,'Article Reference'!$A$3:$D$50,2,FALSE) -> Finale® XL T&O herbicide | B47: =VLOOKUP($C47,'Article Reference'!$A$3:$D$50,3,FALSE) -> 2 x 2.5 gal | C47: 59024131 | D47: =VLOOKUP($C47,'Article Reference'!$A$3:$D$50,4,FALSE) -> $543.75 | E47: =VLOOKUP(C47,'Step 2 - Order Planner'!$C$26:$H$75,4,FALSE)+VLOOKUP(C47,'Step 2 - Order Planner'!$C$26:$H$75,6,FALSE) -> 0 | F47: =E47*D47 -> 0
A48: =VLOOKUP($C48,'Article Reference'!$A$3:$D$50,2,FALSE) -> FreeHand® 1.75G herbicide | B48: =VLOOKUP($C48,'Article Reference'!$A$3:$D$50,3,FALSE) -> 1 x 50 lb | C48: 59011296 | D48: =VLOOKUP($C48,'Article Reference'!$A$3:$D$50,4,FALSE) -> $109.50 | E48: =VLOOKUP(C48,'Step 2 - Order Planner'!$C$26:$H$75,4,FALSE)+VLOOKUP(C48,'Step 2 - Order Planner'!$C$26:$H$75,6,FALSE) -> 0 | F48: 0
A49: =VLOOKUP($C49,'Article Reference'!$A$3:$D$50,2,FALSE) -> Green Lawnger® colorant | B49: =VLOOKUP($C49,'Article Reference'!$A$3:$D$50,3,FALSE) -> 2 x 2.5 gal | C49: 59013430 | D49: =VLOOKUP($C49,'Article Reference'!$A$3:$D$50,4,FALSE) -> $376.56 | E49: =VLOOKUP(C49,'Step 2 - Order Planner'!$C$26:$H$75,4,FALSE)+VLOOKUP(C49,'Step 2 - Order Planner'!$C$26:$H$75,6,FALSE) -> 0 | F49: 0
A50: =VLOOKUP($C50,'Article Reference'!$A$3:$D$50,2,FALSE) -> Green Lawnger® Transition HC colorant | B50: =VLOOKUP($C50,'Article Reference'!$A$3:$D$50,3,FALSE) -> 4 x 1 gal | C50: 59013410 | D50: =VLOOKUP($C50,'Article Reference'!$A$3:$D$50,4,FALSE) -> $787.50 | E50: =VLOOKUP(C50,'Step 2 - Order Planner'!$C$26:$H$75,4,FALSE)+VLOOKUP(C50,'Step 2 - Order Planner'!$C$26:$H$75,6,FALSE) -> 0 | F50: 0
A51: =VLOOKUP($C51,'Article Reference'!$A$3:$D$50,2,FALSE) -> Green Lawnger® Vision Pro colorant | B51: =VLOOKUP($C51,'Article Reference'!$A$3:$D$50,3,FALSE) -> 4 x 1 gal | C51: 59013342 | D51: =VLOOKUP($C51,'Article Reference'!$A$3:$D$50,4,FALSE) -> $707.50 | E51: =VLOOKUP(C51,'Step 2 - Order Planner'!$C$26:$H$75,4,FALSE)+VLOOKUP(C51,'Step 2 - Order Planner'!$C$26:$H$75,6,FALSE) -> 0 | F51: 0
A52: =VLOOKUP($C52,'Article Reference'!$A$3:$D$50,2,FALSE) -> Orkestra® Intrinsic® brand Fungicide | B52: =VLOOKUP($C52,'Article Reference'!$A$3:$D$50,3,FALSE) -> 4 x 16 oz | C52: 59014379 | D52: =VLOOKUP($C52,'Article Reference'!$A$3:$D$50,4,FALSE) -> $668.80 | E52: =VLOOKUP(C52,'Step 2 - Order Planner'!$C$26:$H$75,4,FALSE)+VLOOKUP(C52,'Step 2 - Order Planner'!$C$26:$H$75,6,FALSE) -> 0 | F52: 0
A53: =VLOOKUP($C53,'Article Reference'!$A$3:$D$50,2,FALSE) -> Pageant® Intrinsic® brand Fungicide | B53: =VLOOKUP($C53,'Article Reference'!$A$3:$D$50,3,FALSE) -> 4 x 1 lb | C53: 59012349 | D53: =VLOOKUP($C53,'Article Reference'!$A$3:$D$50,4,FALSE) -> $443.36 | E53: =VLOOKUP(C53,'Step 2 - Order Planner'!$C$26:$H$75,4,FALSE)+VLOOKUP(C53,'Step 2 - Order Planner'!$C$26:$H$75,6,FALSE) -> 0 | F53: 0
A54: =VLOOKUP($C54,'Article Reference'!$A$3:$D$50,2,FALSE) -> Pendulum® 2G herbicide | B54: =VLOOKUP($C54,'Article Reference'!$A$3:$D$50,3,FALSE) -> 20 lbs bag | C54: 59017972 | D54: =VLOOKUP($C54,'Article Reference'!$A$3:$D$50,4,FALSE) -> $48.50 | E54: =VLOOKUP(C54,'Step 2 - Order Planner'!$C$26:$H$75,4,FALSE)+VLOOKUP(C54,'Step 2 - Order Planner'!$C$26:$H$75,6,FALSE) -> 0 | F54: 0
A55: =VLOOKUP($C55,'Article Reference'!$A$3:$D$50,2,FALSE) -> Pendulum® 2G herbicide | B55: =VLOOKUP($C55,'Article Reference'!$A$3:$D$50,3,FALSE) -> 40 lbs bag | C55: 59015072 | D55: =VLOOKUP($C55,'Article Reference'!$A$3:$D$50,4,FALSE) -> $85.50 | E55: =VLOOKUP(C55,'Step 2 - Order Planner'!$C$26:$H$75,4,FALSE)+VLOOKUP(C55,'Step 2 - Order Planner'!$C$26:$H$75,6,FALSE) -> 0 | F55: =E55*D55 -> 0
A56: =VLOOKUP($C56,'Article Reference'!$A$3:$D$50,2,FALSE) -> Pendulum® AquaCap herbicide | B56: =VLOOKUP($C56,'Article Reference'!$A$3:$D$50,3,FALSE) -> 2 x 2.5 gal | C56: 59049276 | D56: =VLOOKUP($C56,'Article Reference'!$A$3:$D$50,4,FALSE) -> $281.25 | E56: =VLOOKUP(C56,'Step 2 - Order Planner'!$C$26:$H$75,4,FALSE)+VLOOKUP(C56,'Step 2 - Order Planner'!$C$26:$H$75,6,FALSE) -> 0 | F56: 0
A57: =VLOOKUP($C57,'Article Reference'!$A$3:$D$50,2,FALSE) -> Pendulum® AquaCap herbicide | B57: =VLOOKUP($C57,'Article Reference'!$A$3:$D$50,3,FALSE) -> 1 x 15 gal | C57: 59011279 | D57: =VLOOKUP($C57,'Article Reference'!$A$3:$D$50,4,FALSE) -> $983.10 | E57: =VLOOKUP(C57,'Step 2 - Order Planner'!$C$26:$H$75,4,FALSE)+VLOOKUP(C57,'Step 2 - Order Planner'!$C$26:$H$75,6,FALSE) -> 0 | F57: =E57*D57 -> 0
A58: =VLOOKUP($C58,'Article Reference'!$A$3:$D$50,2,FALSE) -> Pillar® G Intrinsic® brand fungicide | B58: =VLOOKUP($C58,'Article Reference'!$A$3:$D$50,3,FALSE) -> 15 lbs bag | C58: 59017959 | D58: =VLOOKUP($C58,'Article Reference'!$A$3:$D$50,4,FALSE) -> $56.63 | E58: =VLOOKUP(C58,'Step 2 - Order Planner'!$C$26:$H$75,4,FALSE)+VLOOKUP(C58,'Step 2 - Order Planner'!$C$26:$H$75,6,FALSE) -> 0 | F58: 0
A59: =VLOOKUP($C59,'Article Reference'!$A$3:$D$50,2,FALSE) -> Pillar® G Intrinsic® brand fungicide | B59: =VLOOKUP($C59,'Article Reference'!$A$3:$D$50,3,FALSE) -> 30 lbs bag | C59: 59012784 | D59: =VLOOKUP($C59,'Article Reference'!$A$3:$D$50,4,FALSE) -> $105.00 | E59: =VLOOKUP(C59,'Step 2 - Order Planner'!$C$26:$H$75,4,FALSE)+VLOOKUP(C59,'Step 2 - Order Planner'!$C$26:$H$75,6,FALSE) -> 0 | F59: 0
A60: =VLOOKUP($C60,'Article Reference'!$A$3:$D$50,2,FALSE) -> Pylex® herbicide | B60: =VLOOKUP($C60,'Article Reference'!$A$3:$D$50,3,FALSE) -> 4 x 4 oz | C60: 59018005 | D60: =VLOOKUP($C60,'Article Reference'!$A$3:$D$50,4,FALSE) -> $1,376.00 | E60: =VLOOKUP(C60,'Step 2 - Order Planner'!$C$26:$H$75,4,FALSE)+VLOOKUP(C60,'Step 2 - Order Planner'!$C$26:$H$75,6,FALSE) -> 0 | F60: 0
A61: =VLOOKUP($C61,'Article Reference'!$A$3:$D$50,2,FALSE) -> Segment® II herbicide | B61: =VLOOKUP($C61,'Article Reference'!$A$3:$D$50,3,FALSE) -> 2 x 2.5 gal | C61: 59014427 | D61: =VLOOKUP($C61,'Article Reference'!$A$3:$D$50,4,FALSE) -> $1,562.50 | E61: =VLOOKUP(C61,'Step 2 - Order Planner'!$C$26:$H$75,4,FALSE)+VLOOKUP(C61,'Step 2 - Order Planner'!$C$26:$H$75,6,FALSE) -> 0 | F61: 0
A62: =VLOOKUP($C62,'Article Reference'!$A$3:$D$50,2,FALSE) -> Siesta® Fire Ant Bait | B62: =VLOOKUP($C62,'Article Reference'!$A$3:$D$50,3,FALSE) -> 15 lbs | C62: 59011057 | D62: =VLOOKUP($C62,'Article Reference'!$A$3:$D$50,4,FALSE) -> $294.19 | E62: =VLOOKUP(C62,'Step 2 - Order Planner'!$C$26:$H$75,4,FALSE)+VLOOKUP(C62,'Step 2 - Order Planner'!$C$26:$H$75,6,FALSE) -> 0 | F62: 0
A63: =VLOOKUP($C63,'Article Reference'!$A$3:$D$50,2,FALSE) -> Sultan® miticide | B63: =VLOOKUP($C63,'Article Reference'!$A$3:$D$50,3,FALSE) -> 4 x 0.125 gal | C63: 59023753 | D63: =VLOOKUP($C63,'Article Reference'!$A$3:$D$50,4,FALSE) -> $709.68 | E63: =VLOOKUP(C63,'Step 2 - Order Planner'!$C$26:$H$75,4,FALSE)+VLOOKUP(C63,'Step 2 - Order Planner'!$C$26:$H$75,6,FALSE) -> 0 | F63: 0
A64: =VLOOKUP($C64,'Article Reference'!$A$3:$D$50,2,FALSE) -> Tower® herbicide | B64: =VLOOKUP($C64,'Article Reference'!$A$3:$D$50,3,FALSE) -> 2 x 2.5 gal | C64: 59014247 | D64: =VLOOKUP($C64,'Article Reference'!$A$3:$D$50,4,FALSE) -> $1,972.50 | E64: =VLOOKUP(C64,'Step 2 - Order Planner'!$C$26:$H$75,4,FALSE)+VLOOKUP(C64,'Step 2 - Order Planner'!$C$26:$H$75,6,FALSE) -> 0 | F64: 0
A65: =VLOOKUP($C65,'Article Reference'!$A$3:$D$50,2,FALSE) -> Turf Mark spray indicator | B65: =VLOOKUP($C65,'Article Reference'!$A$3:$D$50,3,FALSE) -> 12 x 0.25 gal | C65: 59013723 | D65: =VLOOKUP($C65,'Article Reference'!$A$3:$D$50,4,FALSE) -> $247.50 | E65: =VLOOKUP(C65,'Step 2 - Order Planner'!$C$26:$H$75,4,FALSE)+VLOOKUP(C65,'Step 2 - Order Planner'!$C$26:$H$75,6,FALSE) -> 0 | F65: 0
A66: =VLOOKUP($C66,'Article Reference'!$A$3:$D$50,2,FALSE) -> Turf Mark spray indicator | B66: =VLOOKUP($C66,'Article Reference'!$A$3:$D$50,3,FALSE) -> 1 x 30 gal | C66: 59013314 | D66: =VLOOKUP($C66,'Article Reference'!$A$3:$D$50,4,FALSE) -> $1,556.25 | E66: =VLOOKUP(C66,'Step 2 - Order Planner'!$C$26:$H$75,4,FALSE)+VLOOKUP(C66,'Step 2 - Order Planner'!$C$26:$H$75,6,FALSE) -> 0 | F66: 0
A67: =VLOOKUP($C67,'Article Reference'!$A$3:$D$50,2,FALSE) -> Turf Mark spray indicator - blue | B67: =VLOOKUP($C67,'Article Reference'!$A$3:$D$50,3,FALSE) -> 2 x 2.5 gal | C67: 59013417 | D67: =VLOOKUP($C67,'Article Reference'!$A$3:$D$50,4,FALSE) -> $278.13 | E67: =VLOOKUP(C67,'Step 2 - Order Planner'!$C$26:$H$75,4,FALSE)+VLOOKUP(C67,'Step 2 - Order Planner'!$C$26:$H$75,6,FALSE) -> 0 | F67: 0
A68: =VLOOKUP($C68,'Article Reference'!$A$3:$D$50,2,FALSE) -> Turf Mark spray indicator - green | B68: =VLOOKUP($C68,'Article Reference'!$A$3:$D$50,3,FALSE) -> 2 x 2.5 gal | C68: 59013486 | D68: =VLOOKUP($C68,'Article Reference'!$A$3:$D$50,4,FALSE) -> $333.88 | E68: =VLOOKUP(C68,'Step 2 - Order Planner'!$C$26:$H$75,4,FALSE)+VLOOKUP(C68,'Step 2 - Order Planner'!$C$26:$H$75,6,FALSE) -> 0 | F68: 0
A69: =VLOOKUP($C69,'Article Reference'!$A$3:$D$50,2,FALSE) -> Ventigra® insecticide | B69: =VLOOKUP($C69,'Article Reference'!$A$3:$D$50,3,FALSE) -> 4 x 20 oz | C69: 59014680 | D69: =VLOOKUP($C69,'Article Reference'!$A$3:$D$50,4,FALSE) -> $1,266.40 | E69: =VLOOKUP(C69,'Step 2 - Order Planner'!$C$26:$H$75,4,FALSE)+VLOOKUP(C69,'Step 2 - Order Planner'!$C$26:$H$75,6,FALSE) -> 0 | F69: =E69*D69 -> 0
A70: Across-the-Course-Solutions Rebate Purchase Sub-Total | F70: ='Step 2 - Order Planner'!H19 -> 0
A72: BASF has developed this calculator using formulas that approximate the rebate amount under the 2024 Early Order Program. The calculator is being shared with you for information purposes only and for your private use in preparing your own calculations. While every effort has been made to ensure the accuracy and reliability of the information and formulas, no guarantee is given nor responsibility taken by BASF for the accuracy of the calculator or the applicability to your particular circumstances. BASF PROVIDES THIS CALCULATOR AND ANY RESULT THEREFROM AS IS WITH ALL FAULTS AND WITH NO WARRANTY WHATSOEVER, EITHER EXPRESS OR IMPLIED, INCLUDING ANY WARRANTIES OF MERCHANTABILITY AND FITNESS FOR PARTICULAR PURPOSE. YOU ASSUME ANY AND ALL RISKS IN USING THE CALCULATOR AND RELYING ON THE INFORMATION CONTAINED HEREIN. IN NO CIRCUMSTANCES SHALL BASF BE LIABLE FOR ANY DAMAGES WHATSOEVER, INCLUDING BUT NOT LIMITED TO LOSS OF PROFIT, LOSS OF BUSINESS, LOSS OF SAVINGS, OR CONSEQUENTIAL DAMAGES, EVEN IF BASF HAS BEEN NOTIFIED AS SUCH.

Sheet Range Reference (hidden)
A1: Standard | C1: Oct | D1: Nov-Dec | L1: Article# | M1: Article | N1: Package | O1: Oct Order | P1: Nov-Dec Order | Q1: Oct Count | R1: Nov-Dec Count | S1: Total | T1: Case Size | U1: Total Vol | V1: Gal/LB Coversion | W1: Gal/LB Volume
A2: Low | B2: High | C2: Discount | D2: Discount | E2: Oct Applied | G2: Rebate Applied | L2: 59021463 | M2: =VLOOKUP($L2,'Article Reference'!$A$3:$C$15,2,FALSE) -> Emerald® fungicide | N2: =VLOOKUP($L2,'Article Reference'!$A$3:$C$15,3,FALSE) -> 10 x 0.49 lb | O2: =VLOOKUP(L2,'Step 2 - Order Planner'!$C$26:$F$38,4,FALSE) -> 0 | P2: =VLOOKUP(L2,'Step 2 - Order Planner'!$C$26:$H$38,6,FALSE) -> 0 | Q2: =IF(O2+O3>0,1,0) -> 0 | R2: =IF(P2+P3>0,1,0) -> 0 | S2: =IF(OR(Q2=1,R2=1),1,0) -> 0
A3: $3,000.00 | B3: =A4-1 -> $7,999.00 | C3: 4% | D3: 4% | E3: =IF(AND(('Step 2 - Order Planner'!$H$19+$E$7)>=3000,'Step 2 - Order Planner'!$H$19+$E$7>=$A3,'Step 2 - Order Planner'!$H$19+$E$7<=$B3),C3) -> FALSE | G3: =SUM(E3:F3) -> 0%
A4: $8,000.00 | B4: =A5-1 -> $19,999.00 | C4: 6% | D4: 6% | E4: =IF(AND(('Step 2 - Order Planner'!$H$19+$E$7)>=3000,'Step 2 - Order Planner'!$H$19+$E$7>=$A4,'Step 2 - Order Planner'!$H$19+$E$7<=$B4),C4) -> FALSE | G4: =SUM(E4:F4) -> 0% | L4: 59014003 | M4: =VLOOKUP($L4,'Article Reference'!$A$3:$C$15,2,FALSE) -> Encartis® fungicide | N4: =VLOOKUP($L4,'Article Reference'!$A$3:$C$15,3,FALSE) -> 2 x 2.5 gal | O4: =VLOOKUP(L4,'Step 2 - Order Planner'!$C$26:$F$38,4,FALSE) -> 0 | P4: =VLOOKUP(L4,'Step 2 - Order Planner'!$C$26:$H$38,6,FALSE) -> 0 | Q4: =IF(O4>0,1,0) -> 0 | R4: =IF(P4>0,1,0) -> 0 | S4: =IF(OR(Q4=1,R4=1),1,0) -> 0
A5: $20,000.00 | B5: $1,000,000.00 | C5: 12% | D5: 12% | E5: =IF(AND(('Step 2 - Order Planner'!$H$19+$E$7)>=3000,'Step 2 - Order Planner'!$H$19+$E$7>=$A5,'Step 2 - Order Planner'!$H$19+$E$7<=$B5),C5) -> FALSE | G5: =SUM(E5:F5) -> 0% | L5: 59012350 | M5: =VLOOKUP($L5,'Article Reference'!$A$3:$C$15,2,FALSE) -> Honor® Intrinsic® brand fungicide | N5: =VLOOKUP($L5,'Article Reference'!$A$3:$C$15,3,FALSE) -> 6 x 3 lb | O5: =VLOOKUP(L5,'Step 2 - Order Planner'!$C$26:$F$38,4,FALSE) -> 0 | P5: =VLOOKUP(L5,'Step 2 - Order Planner'!$C$26:$H$38,6,FALSE) -> 0 | Q5: =IF(O5+O6>0,1,0) -> 0 | R5: =IF(P5+P6>0,1,0) -> 0 | S5: =IF(OR(Q5=1,R5=1),1,0) -> 0 | T5: =6*3 -> 18 | U5: =(O5+P5)*T5 -> 0 | V5: 1 | W5: =V5*U5 -> 0
C6: DISCOUNT | E6: =SUM(E3:E5) -> 0% | G6: =SUM(E6:F6) -> 0% | L6: 59012885 | M6: =VLOOKUP($L6,'Article Reference'!$A$3:$C$15,2,FALSE) -> Honor® Intrinsic® brand fungicide | N6: =VLOOKUP($L6,'Article Reference'!$A$3:$C$15,3,FALSE) -> 1 x 36 lb | O6: =VLOOKUP(L6,'Step 2 - Order Planner'!$C$26:$F$38,4,FALSE) -> 0 | P6: =VLOOKUP(L6,'Step 2 - Order Planner'!$C$26:$H$38,6,FALSE) -> 0 | T6: =1*36 -> 36 | U6: =(O6+P6)*T6 -> 0 | V6: 1 | W6: =V6*U6 -> 0
E7: 0 | L7: 59014134 | M7: =VLOOKUP($L7,'Article Reference'!$A$3:$C$15,2,FALSE) -> Insignia® SC Intrinsic® brand fungicide | N7: =VLOOKUP($L7,'Article Reference'!$A$3:$C$15,3,FALSE) -> 4 x 30.5 fl oz | O7: =VLOOKUP(L7,'Step 2 - Order Planner'!$C$26:$F$38,4,FALSE) -> 0 | P7: =VLOOKUP(L7,'Step 2 - Order Planner'!$C$26:$H$38,6,FALSE) -> 0 | Q7: =IF(O7+O8>0,1,0) -> 0 | R7: =IF(P7+P8>0,1,0) -> 0 | S7: =IF(OR(Q7=1,R7=1),1,0) -> 0 | T7: =4*30.5 -> 122 | U7: =(O7+P7)*T7 -> 0 | V7: 0.0078125 | W7: =V7*U7 -> 0
L8: 59014135 | M8: =VLOOKUP($L8,'Article Reference'!$A$3:$C$15,2,FALSE) -> Insignia® SC Intrinsic® brand fungicide | N8: =VLOOKUP($L8,'Article Reference'!$A$3:$C$15,3,FALSE) -> 2 x 2.5 gal | O8: =VLOOKUP(L8,'Step 2 - Order Planner'!$C$26:$F$38,4,FALSE) -> 0 | P8: =VLOOKUP(L8,'Step 2 - Order Planner'!$C$26:$H$38,6,FALSE) -> 0 | T8: 5 | U8: =(O8+P8)*T8 -> 0 | V8: 1 | W8: =V8*U8 -> 0
A9: DYOP | C9: Oct | D9: Nov-Dec | L9: 59027998 | M9: =VLOOKUP($L9,'Article Reference'!$A$3:$C$15,2,FALSE) -> Lexicon® Intrinsic® brand fungicide | N9: =VLOOKUP($L9,'Article Reference'!$A$3:$C$15,3,FALSE) -> 4 x 21 oz | O9: =VLOOKUP(L9,'Step 2 - Order Planner'!$C$26:$F$38,4,FALSE) -> 0 | P9: =VLOOKUP(L9,'Step 2 - Order Planner'!$C$26:$H$38,6,FALSE) -> 0 | Q9: =IF(O9>0,1,0) -> 0 | R9: =IF(P9>0,1,0) -> 0 | S9: =IF(OR(Q9=1,R9=1),1,0) -> 0
A10: Low | B10: High | C10: Discount | D10: Discount | E10: Oct Applied | F10: Nov-Dec Applied | G10: Rebate Applied | H10: ='Step 2 - Order Planner'!H17:I17 -> 0 | L10: 59018087 | M10: =VLOOKUP($L10,'Article Reference'!$A$3:$C$15,2,FALSE) -> Maxtima® fungicide | N10: =VLOOKUP($L10,'Article Reference'!$A$3:$C$15,3,FALSE) -> 4 x 26 oz | O10: =VLOOKUP(L10,'Step 2 - Order Planner'!$C$26:$F$38,4,FALSE) -> 0 | P10: =VLOOKUP(L10,'Step 2 - Order Planner'!$C$26:$H$38,6,FALSE) -> 0 | Q10: =IF(O10+O11>0,1,0) -> 0 | R10: =IF(P10+P11>0,1,0) -> 0 | S10: =IF(OR(Q10=1,R10=1),1,0) -> 0
A11: $3,000.00 | B11: =A12-1 -> $7,999.00 | C11: 8% | D11: 4% | E11: =IF(AND(('Step 2 - Order Planner'!$G$39)>=3000,Q17>=1),C11) -> FALSE | F11: =IF(AND(('Step 2 - Order Planner'!$J$39)>=3000,S17>=1),D11) -> FALSE | G11: =IF(E11<>FALSE,E11,F11) -> FALSE | H11: =A11-H10 -> $3,000.00 | I11: 8% | L11: 59018071 | M11: =VLOOKUP($L11,'Article Reference'!$A$3:$C$15,2,FALSE) -> Maxtima® fungicide | N11: =VLOOKUP($L11,'Article Reference'!$A$3:$C$15,3,FALSE) -> 2 x 2.5 gal | O11: =VLOOKUP(L11,'Step 2 - Order Planner'!$C$26:$F$38,4,FALSE) -> 0 | P11: =VLOOKUP(L11,'Step 2 - Order Planner'!$C$26:$H$38,6,FALSE) -> 0
A12: $8,000.00 | B12: =A13-1 -> $19,999.00 | C12: 14% | D12: 7% | E12: =IF(AND(('Step 2 - Order Planner'!$G$39)>=3000,$Q$17>=1,'Step 2 - Order Planner'!J39>=$A12,'Step 2 - Order Planner'!J39<=$B12),C12) -> FALSE | F12: =IF(AND(('Step 2 - Order Planner'!$J$39)>=3000,$S$17>=1,'Step 2 - Order Planner'!J39>=$A12,'Step 2 - Order Planner'!J39<=$B12),D12) -> FALSE | G12: =IF(E12<>FALSE,E12,F12) -> FALSE | H12: =A12-H10 -> $8,000.00 | I12: 14% | L12: 59018094 | M12: =VLOOKUP($L12,'Article Reference'!$A$3:$C$15,2,FALSE) -> Navicon® Intrinsic® brand fungicide | N12: =VLOOKUP($L12,'Article Reference'!$A$3:$C$15,3,FALSE) -> 4 x 37 fl oz | O12: =VLOOKUP(L12,'Step 2 - Order Planner'!$C$26:$F$38,4,FALSE) -> 0 | P12: =VLOOKUP(L12,'Step 2 - Order Planner'!$C$26:$H$38,6,FALSE) -> 0 | Q12: =IF(O12+O13>0,1,0) -> 0 | R12: =IF(P12+P13>0,1,0) -> 0 | S12: =IF(OR(Q12=1,R12=1),1,0) -> 0
A13: $20,000.00 | B13: =A14-1 -> $29,999.00 | C13: 17% | D13: 10% | E13: =IF(AND(('Step 2 - Order Planner'!$G$39)>=3000,Q17>=1,'Step 2 - Order Planner'!J39>=$A13,'Step 2 - Order Planner'!J39<=$B13),C13) -> FALSE | F13: =IF(AND(('Step 2 - Order Planner'!$J$39)>=3000,$S$17>=1,'Step 2 - Order Planner'!J39>=$A13,'Step 2 - Order Planner'!J39<=$B13),D13) -> FALSE | G13: =IF(E13<>FALSE,E13,F13) -> FALSE | H13: =A13-H10 -> $20,000.00 | I13: 17% | L13: 59018095 | M13: =VLOOKUP($L13,'Article Reference'!$A$3:$C$15,2,FALSE) -> Navicon® Intrinsic® brand fungicide | N13: =VLOOKUP($L13,'Article Reference'!$A$3:$C$15,3,FALSE) -> 2 x 2.5 gal | O13: =VLOOKUP(L13,'Step 2 - Order Planner'!$C$26:$F$38,4,FALSE) -> 0 | P13: =VLOOKUP(L13,'Step 2 - Order Planner'!$C$26:$H$38,6,FALSE) -> 0
A14: $30,000.00 | B14: =A15-1 -> $39,999.00 | C14: 20% | D14: 12% | E14: =IF(AND(('Step 2 - Order Planner'!$G$39)>=3000,Q17>=1,'Step 2 - Order Planner'!J39>=$A14,'Step 2 - Order Planner'!J39<=$B14),C14) -> FALSE | F14: =IF(AND(('Step 2 - Order Planner'!$J$39)>=3000,$S$17>=1,'Step 2 - Order Planner'!J39>=$A14,'Step 2 - Order Planner'!J39<=$B14),D14) -> FALSE | G14: =IF(E14<>FALSE,E14,F14) -> FALSE | H14: =A14-H10 -> $30,000.00 | I14: 20% | L14: 59013833 | M14: =VLOOKUP($L14,'Article Reference'!$A$3:$C$15,2,FALSE) -> Xzemplar® fungicide | N14: =VLOOKUP($L14,'Article Reference'!$A$3:$C$15,3,FALSE) -> 2 x 114 oz | O14: =VLOOKUP(L14,'Step 2 - Order Planner'!$C$26:$F$38,4,FALSE) -> 0 | P14: =VLOOKUP(L14,'Step 2 - Order Planner'!$C$26:$H$38,6,FALSE) -> 0 | Q14: =IF(O14+O16>0,1,0) -> 0 | R14: =IF(P14+P16>0,1,0) -> 0 | S14: =IF(OR(Q14=1,R14=1),1,0) -> 0
A15: $40,000.00 | B15: $10,000,000.00 | C15: 24% | D15: 14% | E15: =IF(AND(('Step 2 - Order Planner'!$G$39)>=3000,Q17>=1,'Step 2 - Order Planner'!J39>=$A15,'Step 2 - Order Planner'!J39<=$B15),C15) -> FALSE | F15: =IF(AND(('Step 2 - Order Planner'!$J$39)>=3000,$S$17>=1,'Step 2 - Order Planner'!J40>=$A15,'Step 2 - Order Planner'!J40<=$B15),D15) -> FALSE | G15: =IF(E15<>FALSE,E15,F15) -> FALSE | H15: =A15-H10 -> $40,000.00 | I15: 24%
C16: DISCOUNT | G16: =MAX(G11:G15) -> 0% | H16: =MIN(IF(H11:H15>0,H11:H15)) -> $3,000.00 | L16: 59014120 | M16: =VLOOKUP($L16,'Article Reference'!$A$3:$C$15,2,FALSE) -> Xzemplar® fungicide | N16: =VLOOKUP($L16,'Article Reference'!$A$3:$C$15,3,FALSE) -> 4 x 11.4 oz | O16: =VLOOKUP(L16,'Step 2 - Order Planner'!$C$26:$F$38,4,FALSE) -> 0 | P16: =VLOOKUP(L16,'Step 2 - Order Planner'!$C$26:$H$38,6,FALSE) -> 0
Q17: =SUM(Q2:Q16) -> 0 | R17: =SUM(R2:R16) -> 0 | S17: =SUM(S2:S16) -> 0 | V17: ='Step 2 - Order Planner'!G30+'Step 2 - Order Planner'!G31+'Step 2 - Order Planner'!I30+'Step 2 - Order Planner'!I31 -> 0 | W17: =SUM(W7:W8) -> 0 | X17: Insignia Total
A18: Table B for Fungicides | V18: ='Step 2 - Order Planner'!G28+'Step 2 - Order Planner'!G29+'Step 2 - Order Planner'!I28+'Step 2 - Order Planner'!I29 -> 0 | W18: =SUM(W5:W6) -> 0 | X18: Honor Total
A19: Low | B19: High | C19: Discount | D19: Discount | G19: Rebate Applied | H19: ='Step 2 - Order Planner'!H19:I19 -> 0
A20: $3,000.00 | B20: =A21-1 -> $7,999.00 | C20: 4% | D20: 4% | E20: =IF(AND(('Step 2 - Order Planner'!$G$39+'Step 2 - Order Planner'!$I$39+'Step 2 - Order Planner'!$G$76)>=3000,'Step 2 - Order Planner'!$G$39+'Step 2 - Order Planner'!$I$39+'Step 2 - Order Planner'!$G$76>=$A20,'Step 2 - Order Planner'!$G$39+'Step 2 - Order Planner'!$I$39+'Step 2 - Order Planner'!$G$76<=$B20,S17<=3),C20) -> FALSE | F20: =IF(AND(SUM('Step 2 - Order Planner'!G26:G38)>=3000,SUM('Step 2 - Order Planner'!G26:G38)<8000),0.04,0) -> 0% | G20: =SUM(E20:F20) -> 0% | H20: =A20-$H$19 -> $3,000.00 | I20: 4% | T20: >>Above yellow is not used, but could be for kickers
A21: $8,000.00 | B21: =A22-1 -> $19,999.00 | C21: 6% | D21: 6% | E21: =IF(AND(('Step 2 - Order Planner'!$G$39+'Step 2 - Order Planner'!$I$39+'Step 2 - Order Planner'!$G$76)>=3000,'Step 2 - Order Planner'!$G$39+'Step 2 - Order Planner'!$I$39+'Step 2 - Order Planner'!$G$76>=$A21,'Step 2 - Order Planner'!$G$39+'Step 2 - Order Planner'!$I$39+'Step 2 - Order Planner'!$G$76<=$B21,S17<=3),C21) -> FALSE | G21: =SUM(E21:F21) -> 0% | H21: =A21-$H$19 -> $8,000.00 | I21: 6%
A22: $20,000.00 | B22: $1,000,000.00 | C22: 12% | D22: 12% | E22: =IF(AND(('Step 2 - Order Planner'!$G$39+'Step 2 - Order Planner'!$I$39+'Step 2 - Order Planner'!$G$76)>=3000,'Step 2 - Order Planner'!$G$39+'Step 2 - Order Planner'!$I$39+'Step 2 - Order Planner'!$G$76>=$A22,'Step 2 - Order Planner'!$G$39+'Step 2 - Order Planner'!$I$39+'Step 2 - Order Planner'!$G$76<=$B22,S17<=3),C22) -> FALSE | G22: =SUM(E22:F22) -> 0% | H22: $20,000.00 | I22: 12%
C23: DISCOUNT | E23: =SUM(E20:E22) -> 0% | F23: =SUM(F20:F22) -> 0% | G23: =SUM(E23:F23) -> 0% | H23: =MIN(IF(H20:H22>0,H20:H22)) -> $3,000.00

Sheet Article Reference (hidden)
A1: 2022 Qualifying Fungicides
A2: Article Number | B2: Qaulifying Non-Agency Products | C2: Package | D2: Price | E2: CA Redemption | F2: Case UOM | G2: Price/UOM | H2: Case Price
A3: 59021463 | B3: Emerald® fungicide | C3: 10 x 0.49 lb | D3: $1,187.40 | E3: $1,213.20 | F3: =10*0.49 -> 4.9 | G3: =H3/F3 -> $242.33 | H3: =D3 -> $1,187.40
A4: 59014003 | B4: Encartis® fungicide | C4: 2 x 2.5 gal | D4: $645.66 | E4: $659.70 | F4: =2*2.5 -> 5 | G4: =H4/F4 -> $129.13 | H4: =D4 -> $645.66
A5: 59012350 | B5: Honor® Intrinsic® brand fungicide | C5: 6 x 3 lb | D5: $3,303.54 | E5: $3,375.36 | F5: =6*3 -> 18 | G5: $183.53 | H5: $3,303.54
A6: 59012885 | B6: Honor® Intrinsic® brand fungicide | C6: 1 x 36 lb | D6: $4,867.20 | E6: $4,973.04 | F6: 36 | G6: $135.20 | H6: $4,867.20
A7: 59014134 | B7: Insignia® SC Intrinsic® brand fungicide | C7: 4 x 30.5 fl oz | D7: $2,169.16 | E7: $2,216.76 | F7: =4*30.5 -> 122 | G7: $17.78 | H7: $2,169.16
A8: 59014135 | B8: Insignia® SC Intrinsic® brand fungicide | C8: 2 x 2.5 gal | D8: $7,225.10 | E8: $7,382.26 | F8: 5 | G8: $1,445.02 | H8: $7,225.10
A9: 59027998 | B9: Lexicon® Intrinsic® brand fungicide | C9: 4 x 21 oz | D9: $2,418.36 | E9: $2,471.28 | F9: =4*21 -> 84 | G9: $28.79 | H9: $2,418.36
A10: 59018087 | B10: Maxtima® fungicide | C10: 4 x 26 oz | D10: $907.92 | E10: $927.68 | F10: =4*26 -> 104 | G10: $8.73 | H10: $907.92
A11: 59018071 | B11: Maxtima® fungicide | C11: 2 x 2.5 gal | D11: $4,508.40 | E11: $4,606.46 | F11: 5 | G11: $901.68 | H11: $4,508.40
A12: 59018094 | B12: Navicon® Intrinsic® brand fungicide | C12: 4 x 37 fl oz | D12: $2,172.64 | E12: $2,220.00 | F12: =4*37 -> 148 | G12: $14.68 | H12: $2,172.64
A13: 59018095 | B13: Navicon® Intrinsic® brand fungicide | C13: 2 x 2.5 gal | D13: $6,998.00 | E13: $7,150.20 | F13: 5 | G13: $1,399.60 | H13: $6,998.00
A14: 59013833 | B14: Xzemplar® fungicide | C14: 2 x 114 oz | D14: $3,451.92 | E14: $3,527.16 | F14: =2*114 -> 228 | G14: $15.14 | H14: $3,451.92
A15: 59014120 | B15: Xzemplar® fungicide | C15: 4 x 11.4 oz | D15: $808.04 | E15: $825.80 | F15: =4*11.4 -> 45.6 | G15: $17.72 | H15: $808.04
D16: =SUM(D3:D15) -> $40,663.34 | E16: =SUM(E3:E15) -> $41,548.90
A17: 2022 Rest of Portfolio
A18: Article Number | B18: Qaulifying Non-Agency Products | C18: Package | D18: Price | E18: CA Redemption
A19: 59014151 | B19: Admiral® lake colorant | C19: 4 x 1 gal | D19: $251.45 | E19: =D19 -> $251.45 | F19: 4 | G19: =H19/F19 -> $62.86 | H19: =D19 -> $251.45
A20: 59024020 | B20: Alucion® 35 WG insecticide | C20: 10 x 2.375 lbs | D20: $2,442.90 | E20: NO CA | F20: =10*38 -> 380 | G20: $6.43 | H20: $2,442.90
A21: 59021451 | B21: Amdro Pro Fire Ant Bait | C21: 1 x 25lbs | D21: $536.25 | E21: =D21 -> $536.25 | F21: 25 | G21: $21.45 | H21: $536.25
A22: 59011636 | B22: Basagran® herbicide | C22: 2 x 1 gal | D22: $125.58 | E22: NO CA | F22: 2 | G22: $62.79 | H22: $125.58
A23: 59013424 | B23: Black Onyx lake & pond colorant | C23: 4 x 1 gal | D23: $428.00 | E23: $428.00 | F23: 4 | G23: $107.00 | H23: $428.00
A24: 59011404 | B24: Drive® XLR8 herbicide | C24: 4 x 0.5 gal | D24: $221.25 | E24: $221.25 | F24: =4*0.5 -> 2 | G24: $110.63 | H24: $221.25
A25: 59018043 | B25: Drive® XLR8 herbicide | C25: 2 x 2.5 gal | D25: $514.44 | E25: $514.44 | H25: $514.44
A26: 59024131 | B26: Finale® XL T&O herbicide | C26: 2 x 2.5 gal | D26: $543.75 | E26: $543.75 | F26: 5 | G26: =H26/F26 -> $108.75 | H26: $543.75
A27: 59011296 | B27: FreeHand® 1.75G herbicide | C27: 1 x 50 lb | D27: $109.50 | E27: $112.00 | F27: 50 | G27: $2.19 | H27: $109.50 | J27: 59013674 | K27: FreeHand® 1.75G CA herbicide | L27: 1 x 50 lb
A28: 59013430 | B28: Green Lawnger® colorant | C28: 2 x 2.5 gal | D28: $376.56 | E28: =D28 -> $376.56 | F28: 5 | G28: $75.31 | H28: $376.56
A29: 59013410 | B29: Green Lawnger® Transition HC colorant | C29: 4 x 1 gal | D29: $787.50 | E29: $787.50 | F29: 4 | G29: $196.88 | H29: $787.50
A30: 59013342 | B30: Green Lawnger® Vision Pro colorant | C30: 4 x 1 gal | D30: $707.50 | E30: $707.50 | F30: 4 | G30: $176.88 | H30: $707.50
A31: 59020732 | B31: Insignia® SC Intrinsic® brand fungicide | C31: 4 x 122 oz | D31: $9,760.00 | E31: =D31 -> $9,760.00 | F31: =4*122 -> 488 | G31: $20.00 | H31: $9,760.00 | J31: <-- | K31: lawn care only?
A32: 59014379 | B32: Orkestra® Intrinsic® brand Fungicide | C32: 4 x 16 oz | D32: $668.80 | E32: $683.52 | F32: =4*16 -> 64 | G32: $10.45 | H32: $668.80
A33: 59012349 | B33: Pageant® Intrinsic® brand Fungicide | C33: 4 x 1 lb | D33: $443.36 | E33: $453.00 | F33: 4 | G33: $110.84 | H33: $443.36
A34: 59017972 | B34: Pendulum® 2G herbicide | C34: 20 lbs bag | D34: $48.50 | E34: =D34 -> $48.50 | F34: 20 | G34: $2.43 | H34: $48.50
A35: 59015072 | B35: Pendulum® 2G herbicide | C35: 40 lbs bag | D35: $85.50 | E35: $85.50 | F35: 40 | G35: $2.14 | H35: $85.50
A36: 59049276 | B36: Pendulum® AquaCap herbicide | C36: 2 x 2.5 gal | D36: $281.25 | E36: $281.25 | F36: 5 | G36: $56.25 | H36: $281.25
A37: 59011279 | B37: Pendulum® AquaCap herbicide | C37: 1 x 15 gal | D37: $983.10 | E37: $1,004.55 | F37: 15 | G37: $65.54 | H37: $983.10
A38: 59017959 | B38: Pillar® G Intrinsic® brand fungicide | C38: 15 lbs bag | D38: $56.63 | E38: =D38 -> $56.63 | F38: 15 | G38: $3.78 | H38: $56.63
A39: 59012784 | B39: Pillar® G Intrinsic® brand fungicide | C39: 30 lbs bag | D39: $105.00 | E39: $105.00 | F39: 30 | G39: $3.50 | H39: $105.00
A40: 59026395 | B40: Pillar® SC Intrinsic brand fungicide | C40: 4 x 43.5 oz | D40: $856.95 | E40: =D40 -> $856.95 | F40: =4*43.5 -> 174 | G40: $4.93 | H40: $856.95 | J40: <-- | K40: lawn care only? | L40: CA Registration?
A41: 59018005 | B41: Pylex® herbicide | C41: 4 x 4 oz | D41: $1,376.00 | E41: $1,405.92 | F41: 16 | G41: $86.00 | H41: $1,376.00
A42: 59014427 | B42: Segment® II herbicide | C42: 2 x 2.5 gal | D42: $1,562.50 | E42: NO CA | F42: 5 | G42: $312.50 | H42: $1,562.50
A43: 59011057 | B43: Siesta® Fire Ant Bait | C43: 15 lbs | D43: $294.19 | E43: =D43 -> $294.19 | F43: 15 | G43: $19.61 | H43: $294.19
A44: 59023753 | B44: Sultan® miticide | C44: 4 x 0.125 gal | D44: $709.68 | E44: $725.12 | F44: =4*0.125 -> 0.5 | G44: $1,419.36 | H44: $709.68
A45: 59014247 | B45: Tower® herbicide | C45: 2 x 2.5 gal | D45: $1,972.50 | E45: $2,015.40 | F45: 5 | G45: $394.50 | H45: $1,972.50
A46: 59013723 | B46: Turf Mark spray indicator | C46: 12 x 0.25 gal | D46: $247.50 | E46: =D46 -> $247.50 | F46: =12*0.25 -> 3 | G46: $82.50 | H46: $247.50
A47: 59013314 | B47: Turf Mark spray indicator | C47: 1 x 30 gal | D47: $1,556.25 | E47: $1,556.25 | F47: 30 | G47: $51.88 | H47: $1,556.25
A48: 59013417 | B48: Turf Mark spray indicator - blue | C48: 2 x 2.5 gal | D48: $278.13 | E48: $278.13 | F48: 5 | G48: $55.63 | H48: $278.13
A49: 59013486 | B49: Turf Mark spray indicator - green | C49: 2 x 2.5 gal | D49: $333.88 | E49: $333.88 | F49: 5 | G49: $66.78 | H49: $333.88
A50: 59014680 | B50: Ventigra® insecticide | C50: 4 x 20 oz | D50: $1,266.40 | E50: $1,293.60 | F50: =4*20 -> 80 | G50: $15.83 | H50: $1,266.40
D51: =SUM(D19:D50) -> $29,930.80 | E51: =SUM(E19:E50) -> $25,963.59

Sheet Coverage Reference (hidden)
A1: Calculator Acreage
A2: Acre Coverage | E2: 4 | F2: 5 | G2: 6 | H2: 7
A3: Product Name | B3: Article # | C3: Package Size | D3: Price/Case | E3: Low Rate | F3: Mid Rate | G3: Mid2 Rate | H3: High rate | K3: Low Rate | L3: Mid Rate | M3: High rate
A4: Emerald® Fungicide | B4: 59021463 | C4: 10 x .49 lb. | H4: 10.00 | K4: 13.90 | L4: 12.00 | M4: 10.00
A5: Emerald® Fungicide | B5: 59012825 | C5: 50 x .49 lb. | H5: 50.00 | K5: 69.30 | L5: 60.00 | M5: 50.00
A6: Encartis® fungicide | B6: 59014003 | C6: 2 x 2.5 gal | F6: 4.90 | G6: 4.20 | H6: 3.70 | K6: 99.00 | L6: 99.00 | M6: 99.00
A7: Honor® Intrinsic™ brand Fungicide | B7: 59012885 | C7: 1 x 36 lb | H7: 12.00 | K7: 24.00 | L7: 18.00 | M7: 12.00
A8: Honor® Intrinsic™ brand Fungicide | B8: 59012350 | C8: 6 x 3 lb | H8: 6.00 | K8: 12.00 | L8: 9.00 | M8: 6.00
A9: Insignia® SC Intrinsic™ brand Fungicide | B9: 59014135 | C9: 2 x 2.5 gal | H9: 21.00 | K9: 36.80 | L9: 28.90 | M9: 21.00
A10: Insignia® SC Intrinsic™ brand Fungicide | B10: 59014134 | C10: 4 x 30.5 oz | H10: 4.00 | K10: 7.00 | L10: 5.50 | M10: 4.00
A11: Lexicon® Intrinsic™ Brand Fungicide | B11: 59027998 | C11: 4 x 21 oz | H11: 4.00 | K11: 5.68 | L11: 4.84 | M11: 4.00
A12: Maxtima® Fungicide | B12: 59018087 | C12: 4 x26 oz | E12: 12.00 | F12: 6.00 | G12: 4.00 | H12: 3.00 | K12: 12.00 | L12: 6.00 | M12: 3.00
A13: Maxtima Fungicide | B13: 59018071 | C13: 2 x 2.5 gal | E13: 73.50 | F13: 36.00 | G13: 24.60 | H13: 18.00 | K13: 73.50 | L13: 36.00 | M13: 18.00
A14: Navicon® Intrinsic™ brand Fungicide | B14: 59018094 | C14: 4 x 37 fl oz | H14: 4.00 | L14: 5.00 | M14: 4.00
A15: Navicon Intrinsic™ brand Fungicide | B15: 59018095 | C15: 2 x 2.5 gal | H15: 17.00 | L15: 21.00 | M15: 17.00
A16: Pillar G Intrinsic™ | B16: 59017959 | C16: 15 lbs | K16: 0.11 | L16: 0.11 | M16: 0.11
A17: Pillar G Intrinsic™ | B17: 59012784 | C17: 30 lbs | K17: 0.22 | L17: 0.22 | M17: 0.22
A18: Xzemplar™ Fungicide | B18: 59013833 | C18: 2 x 114 oz | G18: 25.00 | H18: 20.00 | K18: 32.80 | L18: 24.95 | M18: 20.00
A19: Xzemplar™Fungicide | B19: 59014120 | C19: 4 x 11.4 oz | G19: 5.00 | H19: 4.00 | K19: 6.60 | L19: 5.00 | M19: 4.00
A22: Brand | B22: Rate | C22: Rate Level Above | E22: 43.5
A23: Emerald | B23: ="8.0"&" "&F23 -> 8.0 oz | C23: All | D23: 0.18 | E23: =D23*$E$22 -> 7.83 | F23: oz
A24: Encartis | B24: Select Rate
A25: Encartis | B25: 130.5 fl oz | C25: 5
A26: Encartis | B26: 152.5 fl oz | C26: 6
A27: Encartis | B27: 174.0 fl oz | C27: 7
A28: Honor | B28: ="48.0"&" "&F28 -> 48.0 oz | C28: All | D28: 1.1 | E28: =D28*$E$22 -> 47.85 | F28: oz
A29: Insignia | B29: =30.5&" "&F29 -> 30.5 oz | C29: All | D29: 0.7 | E29: =D29*$E$22 -> 30.45 | F29: oz
A30: Lexicon | B30: ="21.0"&" "&F30 -> 21.0 oz | C30: All | D30: 0.47 | E30: =D30*$E$22 -> 20.45 | F30: oz
A31: Navicon | B31: =37.5&" "&F31 -> 37.5 oz | C31: All | D31: 0.85 | E31: =D31*$E$22 -> 36.98 | F31: oz
A32: Maxtima | B32: Select Rate
A33: Maxtima | B33: =E33&" "&F33 -> 8.7 oz | C33: 4 | D33: 0.2 | E33: =D33*$E$22 -> 8.70 | F33: oz
A34: Maxtima | B34: 17.4 oz | C34: 5 | D34: 0.4 | E34: =D34*$E$22 -> 17.40 | F34: oz
A35: Maxtima | B35: 26.1 oz | C35: 6 | D35: 0.6 | E35: =D35*$E$22 -> 26.10 | F35: oz
A36: Maxtima | B36: 34.8 oz | C36: 7 | D36: 0.8 | E36: =D36*$E$22 -> 34.80 | F36: oz
A37: Xzemplar | B37: Select Rate
A38: Xzemplar | B38: =E38&" "&F38 -> 9.135 oz | C38: 6 | D38: 0.21 | E38: =D38*$E$22 -> 9.14 | F38: oz
A39: Xzemplar | B39: 11.31 oz | C39: 7 | D39: 0.26 | E39: =D39*$E$22 -> 11.31 | F39: oz

Sheet Sheet1 (hidden)
B2: Qualifying Fungicide EOP Purchase Level | C2: October 1st - October 31st, 2021 Earned Rebate | D2: November 1st - December 10th, 2021 Earned Incentive % | E2: January 1 - September 30, 2021 Earned Incentive % | G2: Qualifying EOP Purchase Level (Excluding DYP Fungicides) | H2: October 1st - December 4th, 2021 Earned Rebate | I2: January 1 - September 30, 2022 Earned Incentive % | K2: Qualifying Fungicide EOP Purchase Level | L2: October 1st - October 31st, 2021 Earned Rebate | M2: November 1st - December 3rd, 2021 Earned Incentive % | O2: Qualifying EOP Purchase Level (Excluding DYP Fungicides) | P2: October 1st - December 3rd, 2021 Earned Rebate
B3: $5,000-$14,999 | C3: 12% | D3: 6% | E3: - | G3: $2,000-$6,999 | H3: 4% | I3: - | K3: $5,000-$14,999 | L3: 12% | M3: 8% | O3: $2,000-$6,999 | P3: 4%
B4: $15,000-$24,999 | C4: 16% | D4: 8% | E4: - | G4: $7,000-$14,999 | H4: 6% | I4: - | K4: $15,000-$24,999 | L4: 16% | M4: 10% | O4: $7,000-$14,999 | P4: 6%
B5: $25,000-$34,999 | C5: 20% | D5: 10% | E5: 7% | G5: $15,000+ | H5: 10% | I5: $25,000-$34,999 = 7% | K5: $25,000-$34,999 | L5: 20% | M5: 12% | O5: $15,000+ | P5: 10%
B6: $35,000+ | C6: 24% | D6: 12% | E6: 10% | I6: $35,000+ = 10% | K6: $35,000+ | L6: 24% | M6: 14%
B7: $25,000-$34,999 | C7: 20% | D7: 10% | E7: 7% | G7: $15,000+ | H7: 10% | I7: $25,000-$34,999 = 7%
K12: Design Your Own Program (DYOP) | O12: Across the Course Solutions (ACS)
K13: Qualifying Fungicide Purchase Level (DYOP) | L13: Earned Incentive % | O13: Qualifying EOP Purchase Level (Excluding DYOP Fungicides) | P13: Earned Incentive %
L14: Oct. 1-31, 2023 | M14: Nov. 1-Dec. 1, 2023 | P14: Oct.1-Dec. 1, 2023
K15: $3,000-$7,999 (Par) | L15: 8% | M15: 4% | O15: $3,000-$7,999 | P15: 4%
K16: $8,000-$19,999 (Birdie) | L16: 14% | M16: 7% | O16: $8,000-$19,999 | P16: 6%
K17: $20,000-$29,999 (Eagle) | L17: 17% (+12% on ACS brands) | M17: 10% (+12% on ACS brands) | O17: $20,000+ | P17: 12%
K18: $30,000-$39,999 (Albatross) | L18: 20% (+12% on ACS brands) | M18: 12% (+12% on ACS brands)
K19: $40,000+ (Ace) | L19: 24% (+12% on ACS brands) | M19: 14% (+12% on ACS Brands)
